Body Name,Body,Service Division Label,Service Division Code,Organisational Unit,Expenditure Category,Expenditure Code,CIPFA detailed expediture type,CIPFA detailed expediture code,Narrative,Date,Transaction number,Net Amount,Capital and Revenue,Supplier Name,Supplier ID
Chorley Borough Council,http://statistics.data.gov.uk/id/local-authority/30UE,Capital,Capital,Streetscene & Leisure Contracts,Equipment,3014,Capital Expenditure,Capital,Supply of 140 litre wheeled bins Colour : BLUE X 100 units Artwork /logo as previous,19/03/2014,93996,"2,567.00",Capital,A&C Weber UK Ltd,53284
Chorley Borough Council,http://statistics.data.gov.uk/id/local-authority/30UE,Capital,Capital,Streetscene & Leisure Contracts,Equipment,3014,Capital Expenditure,Capital,Supply of 240 litre wheeled bins Colour : Green X 330 units Artwork /logo as previous,19/03/2014,93997,"6,197.40",Capital,A&C Weber UK Ltd,53284
Chorley Borough Council,http://statistics.data.gov.uk/id/local-authority/30UE,Capital,Capital,Streetscene & Leisure Contracts,Equipment,3014,Capital Expenditure,Capital,Supply of 240 litre wheeled bins Colour : BLUE X 330 units Artwork /logo as previous,19/03/2014,93997,"6,197.40",Capital,A&C Weber UK Ltd,53284
Chorley Borough Council,http://statistics.data.gov.uk/id/local-authority/30UE,Homelessness,1075,Housing,Computer Software-Maintenance,40107,Communication and Computing,5028,AFR: 2330-CBL: Escrow Agreement Annual Fee.  Any Increase Imposed by NCC passed client 01/02/2014 to 31/01/2015,12/03/2014,93473,160.00,Revenue,Abritas Ltd,47473
Chorley Borough Council,http://statistics.data.gov.uk/id/local-authority/30UE,Homelessness,1075,Housing,Computer Software-Maintenance,40107,Communication and Computing,5028,AFR: 2330 - Disk Usage Fee per month for each additional GB over initial 5 GB allowance from 01/10/2013 to 31/12/2013.  ,12/03/2014,93473,140.00,Revenue,Abritas Ltd,47473
Chorley Borough Council,http://statistics.data.gov.uk/id/local-authority/30UE,Homelessness,1075,Housing,Computer Software-Maintenance,40107,Communication and Computing,5028,AFR: 2092 - HOM & TA EXP: Reimbursible expenses Barry Lewis visit 9/14/15 Oct,31/03/2014,94190,88.15,Revenue,Abritas Ltd,47473
Chorley Borough Council,http://statistics.data.gov.uk/id/local-authority/30UE,Homelessness,1075,Housing,Computer Software-Maintenance,40107,Communication and Computing,5028,AFR: 2558 - CBL: Mobile version of the property shop website - setup & licence fee 40% due Contract signing.,31/03/2014,94190,104.17,Revenue,Abritas Ltd,47473
Chorley Borough Council,http://statistics.data.gov.uk/id/local-authority/30UE,Homelessness,1075,Housing,Computer Software-Maintenance,40107,Communication and Computing,5028,AFR: 2558 - CBL: Policy Changes - 40% due: Contract signing.,31/03/2014,94190,712.50,Revenue,Abritas Ltd,47473
Chorley Borough Council,http://statistics.data.gov.uk/id/local-authority/30UE,Homelessness,1075,Housing,Computer Software-Maintenance,40107,Communication and Computing,5028,AFR: 2465 - CBL: Policy Change consultation due: UAT sign off,31/03/2014,94190,187.29,Revenue,Abritas Ltd,47473
Chorley Borough Council,http://statistics.data.gov.uk/id/local-authority/30UE,Homelessness,1075,Housing,Computer Software-Maintenance,40107,Communication and Computing,5028,AFR: 2330 - Disk usage fee per month for each additional GB over initial 5 GB allowance from 01/07/2013 to 30/09/2013.,31/03/2014,94190,119.65,Revenue,Abritas Ltd,47473
Chorley Borough Council,http://statistics.data.gov.uk/id/local-authority/30UE,Capital,Capital,Housing,Grants,3002,Capital Expenditure,Capital,INV 507 NAME AND ADDRESS REDACTED,31/03/2014,94191,"3,239.00",Capital,Accessible Bathroom Solutions Ltd,58149
Chorley Borough Council,http://statistics.data.gov.uk/id/local-authority/30UE,Capital,Capital,Housing,Grants,3002,Capital Expenditure,Capital,INV 502 NAME AND ADDRESS REDACTED,31/03/2014,94192,"1,100.00",Capital,Accessible Bathroom Solutions Ltd,58149
Chorley Borough Council,http://statistics.data.gov.uk/id/local-authority/30UE,Recreation & Sport,1037,Health Environment & Neighbourhoods,Rent/Hire Of Premises,20017,Premises Rents,5007,Hire of half sports hall on Friday nights 5 - 6pm Jan to March - 12 sessions,12/03/2014,93334,375.00,Revenue,Active Nation UK Ltd,17144
Chorley Borough Council,http://statistics.data.gov.uk/id/local-authority/30UE,Democratic Represent and  Mgnt,1007,Health Environment & Neighbourhoods,Rent/Hire Of Premises,20017,Premises Rents,5007,To provide facilities at Clayton Green Sports Centre as agreed for dates Jan 10th till April 4th as listed and directed. ,31/03/2014,93621,"1,693.20",Revenue,Active Nation UK Ltd,17144
Chorley Borough Council,http://statistics.data.gov.uk/id/local-authority/30UE,Democratic Represent and  Mgnt,1007,Health Environment & Neighbourhoods,Rent/Hire Of Premises,20017,Premises Rents,5007,To provide Main Sports Hall and Practice Hall for Saturday Night Doorstep Sport Club Dates ,31/03/2014,94018,"1,152.00",Revenue,Active Nation UK Ltd,17144
Chorley Borough Council,http://statistics.data.gov.uk/id/local-authority/30UE,Democratic Represent and  Mgnt,1007,Streetscene & Leisure Contracts,External Contractor - Trust or Charity,50008,Private Contractors,5042,Mar-14,26/03/2014,94193,"33,416.25",Revenue,Active Nation UK Ltd,17144
Chorley Borough Council,http://statistics.data.gov.uk/id/local-authority/30UE,Capital,Capital,Housing,Main Contractor,3007,Capital Expenditure,Capital,Start on site 50% of grant ADDRESS REDACTED Development of 6 x1 bed flats for affordable rent,12/03/2014,93641,"76,500.00",Capital,Adactus Housing Group,19700
Chorley Borough Council,http://statistics.data.gov.uk/id/local-authority/30UE,Capital,Capital,Streetscene & Leisure Contracts,Main Contractor,3007,Capital Expenditure,Capital,"Restore entire length of stone steps in Astley Park from the lake down to the woods,  to design and specification as agreed.",19/03/2014,93872,"9,595.00",Capital,Adlington Dry Stone Walling,63372
Chorley Borough Council,http://statistics.data.gov.uk/id/local-authority/30UE,Economic Development,1096,Economic Development,Consultants` Fees,40077,Services,5027,Website Address,31/03/2014,94177,300.00,Revenue,Alien Media Limited,64082
Chorley Borough Council,http://statistics.data.gov.uk/id/local-authority/30UE,Unapportionable Central OHeads,1009,"Customer, ICT & Transactional",Bank Charges,40151,Miscellaneous Expenses,5034,Allpay invoices for Sept - March Scheme CHBC,31/03/2014,93925,810.23,Revenue,Allpay Net Ltd,17242
Chorley Borough Council,http://statistics.data.gov.uk/id/local-authority/30UE,Central Support Services,1009,"Customer, ICT & Transactional",Bank Charges,40151,Miscellaneous Expenses,5034,Allpay invoices for Sept - March,31/03/2014,93925,43.01,Revenue,Allpay Net Ltd,17242
Chorley Borough Council,http://statistics.data.gov.uk/id/local-authority/30UE,Economic Development,1096,Economic Development,Cleaning Materials,40019,"Equipment, Furniture & Materia",5023,Please supply items as per email ,12/03/2014,93790,352.61,Revenue,Amtoll Ltd,21738
Chorley Borough Council,http://statistics.data.gov.uk/id/local-authority/30UE,Service Management & Support,1009,Streetscene & Leisure Contracts,Protective Clothing,40040,"Clothing, Uniforms and Laundry",5025,"Product Number - 1891000 - size Extra Large - HIgh Viz, Yellow, Waterproof bomber jacket c/w Chorley Council logo screen",19/03/2014,94011,51.63,Revenue,Arco Limited,17458
Chorley Borough Council,http://statistics.data.gov.uk/id/local-authority/30UE,Service Management & Support,1009,Streetscene & Leisure Contracts,Protective Clothing,40040,"Clothing, Uniforms and Laundry",5025,"Product Number - 1891000 - size XXL - HIgh Viz, Yellow, Waterproof bomber jacket c/w Chorley Council logo screen ",19/03/2014,94011,34.42,Revenue,Arco Limited,17458
Chorley Borough Council,http://statistics.data.gov.uk/id/local-authority/30UE,Service Management & Support,1009,Streetscene & Leisure Contracts,Protective Clothing,40040,"Clothing, Uniforms and Laundry",5025,"Product Number - 2636900 - Water repellent combat trousers, multi pocketed witih concealed zips, belt loops",19/03/2014,94011,73.00,Revenue,Arco Limited,17458
Chorley Borough Council,http://statistics.data.gov.uk/id/local-authority/30UE,Service Management & Support,1009,Streetscene & Leisure Contracts,Protective Clothing,40040,"Clothing, Uniforms and Laundry",5025,"Product Number - 2636900 - Water repellent combat trousers, multi pocketed witih concealed zips, belt loops",19/03/2014,94011,73.00,Revenue,Arco Limited,17458
Chorley Borough Council,http://statistics.data.gov.uk/id/local-authority/30UE,Service Management & Support,1009,Streetscene & Leisure Contracts,Protective Clothing,40040,"Clothing, Uniforms and Laundry",5025,"Product Number - 1891000 - size Large - HIgh Viz, Yellow, Waterproof bomber jacket c/w Chorley Council logo screen print",19/03/2014,94011,120.47,Revenue,Arco Limited,17458
Chorley Borough Council,http://statistics.data.gov.uk/id/local-authority/30UE,Service Management & Support,1009,Streetscene & Leisure Contracts,Protective Clothing,40040,"Clothing, Uniforms and Laundry",5025,Heal Seal Badge Charge,19/03/2014,94011,24.00,Revenue,Arco Limited,17458
Chorley Borough Council,http://statistics.data.gov.uk/id/local-authority/30UE,Corporate Management,1008,Health Environment & Neighbourhoods,Items For Resale,40027,"Equipment, Furniture & Materia",5023,"Repair of 3 alleygates, Alkeer Street, Bannerman Terrace & Gillibrand Street",31/03/2014,94131,270.00,Revenue,Ark Welding Ltd,18154
Chorley Borough Council,http://statistics.data.gov.uk/id/local-authority/30UE,Housing Strategy,1069,Shared Service Arrangement,Car Leasing Payment,14100,Direct Employee Expenses,5001,Vehicle Leasing,05/03/2014,93590,"3,984.00",Revenue,Arnold Clark Finance Ltd,20685
Chorley Borough Council,http://statistics.data.gov.uk/id/local-authority/30UE,Housing Benefit Administration,1077,Shared Service Arrangement,Car Leasing Payment,14100,Direct Employee Expenses,5001,Vehicle Leasing,05/03/2014,93815,"3,000.00",Revenue,Arnold Clark Finance Ltd,20685
Chorley Borough Council,http://statistics.data.gov.uk/id/local-authority/30UE,Housing Benefit Administration,1077,Shared Service Arrangement,Car Leasing Payment,14100,Direct Employee Expenses,5001,Vehicle Leasing,05/03/2014,93815,232.26,Revenue,Arnold Clark Finance Ltd,20685
Chorley Borough Council,http://statistics.data.gov.uk/id/local-authority/30UE,Central Support Services,1009,Shared Service Arrangement,Car Leasing Payment,14100,Direct Employee Expenses,5001,Vehicle Leasing,05/03/2014,93816,"2,568.00",Revenue,Arnold Clark Finance Ltd,20685
Chorley Borough Council,http://statistics.data.gov.uk/id/local-authority/30UE,Unapportionable Central OHeads,1009,Shared Service Arrangement,Car Leasing Payment,14100,Direct Employee Expenses,5001,Vehicle Leasing,05/03/2014,93816,213.72,Revenue,Arnold Clark Finance Ltd,20685
Chorley Borough Council,http://statistics.data.gov.uk/id/local-authority/30UE,Central Support Services,1009,Shared Service Arrangement,Car Leasing Payment,14100,Direct Employee Expenses,5001,Vehicle Leasing,05/03/2014,93816,"3,012.00",Revenue,Arnold Clark Finance Ltd,20685
Chorley Borough Council,http://statistics.data.gov.uk/id/local-authority/30UE,Unapportionable Central OHeads,1009,Shared Service Arrangement,Car Leasing Payment,14100,Direct Employee Expenses,5001,Vehicle Leasing,05/03/2014,93816,252.79,Revenue,Arnold Clark Finance Ltd,20685
Chorley Borough Council,http://statistics.data.gov.uk/id/local-authority/30UE,Central Support Services,1009,Shared Service Arrangement,Car Leasing Payment,14100,Direct Employee Expenses,5001,Vehicle Leasing,05/03/2014,93817,"3,612.00",Revenue,Arnold Clark Finance Ltd,20685
Chorley Borough Council,http://statistics.data.gov.uk/id/local-authority/30UE,Unapportionable Central OHeads,1009,Shared Service Arrangement,Car Leasing Payment,14100,Direct Employee Expenses,5001,Vehicle Leasing,05/03/2014,93817,313.82,Revenue,Arnold Clark Finance Ltd,20685
Chorley Borough Council,http://statistics.data.gov.uk/id/local-authority/30UE,Corporate Management,1008,Shared Service Arrangement,Car Leasing Payment,14100,Direct Employee Expenses,5001,Lease Car,26/03/2014,94125,"3,360.00",Revenue,Arnold Clark Finance Ltd,20685
Chorley Borough Council,http://statistics.data.gov.uk/id/local-authority/30UE,Central Support Services,1009,Shared Service Arrangement,Car Leasing Payment,14100,Direct Employee Expenses,5001,Lease Car,26/03/2014,94125,"2,760.00",Revenue,Arnold Clark Finance Ltd,20685
Chorley Borough Council,http://statistics.data.gov.uk/id/local-authority/30UE,Flood Defence & Land Drainage,1046,Shared Service Arrangement,Car Leasing Payment,14100,Direct Employee Expenses,5001,Lease Car,26/03/2014,94125,336.00,Revenue,Arnold Clark Finance Ltd,20685
Chorley Borough Council,http://statistics.data.gov.uk/id/local-authority/30UE,Unapportionable Central OHeads,1009,Shared Service Arrangement,Car Leasing Payment,14100,Direct Employee Expenses,5001,Lease Car,26/03/2014,94125,276.00,Revenue,Arnold Clark Finance Ltd,20685
Chorley Borough Council,http://statistics.data.gov.uk/id/local-authority/30UE,Community Development,1097,Shared Service Arrangement,Car Leasing Payment,14100,Direct Employee Expenses,5001,Lease Car,26/03/2014,94126,"3,516.00",Revenue,Arnold Clark Finance Ltd,20685
Chorley Borough Council,http://statistics.data.gov.uk/id/local-authority/30UE,Community Development,1097,Shared Service Arrangement,Car Leasing Payment,14100,Direct Employee Expenses,5001,Lease Car,26/03/2014,94126,351.60,Revenue,Arnold Clark Finance Ltd,20685
Chorley Borough Council,http://statistics.data.gov.uk/id/local-authority/30UE,Regulatory Services,1048,Health Environment & Neighbourhoods,Taxi Testing & Vehicle Safety Report,40234,Services,5027,MOTs,12/03/2014,93928,822.75,Revenue,Autocentre LTD,21651
Chorley Borough Council,http://statistics.data.gov.uk/id/local-authority/30UE,Regulatory Services,1048,Health Environment & Neighbourhoods,Taxi Testing & Vehicle Safety Report,40234,Services,5027,MOTs,12/03/2014,93928,124.95,Revenue,Autocentre LTD,21651
Chorley Borough Council,http://statistics.data.gov.uk/id/local-authority/30UE,Parking Services,1066,Shared Service Arrangement,Tools & Equipment - Purchase,40003,"Equipment, Furniture & Materia",5023, 29/11/2013 - Paypal BatteriesMo - Batteries for parking attendants printer,12/03/2014,93873,45.38,Revenue,Barclaycard Commercial,59848
Chorley Borough Council,http://statistics.data.gov.uk/id/local-authority/30UE,Economic Development,1096,Shared Service Arrangement,Promotional Expenses,40159,Miscellaneous Expenses,5034,09/12/2013 - Mailchimp - Mailchimp monthly charge for Dec 13,12/03/2014,93873,18.60,Revenue,Barclaycard Commercial,59848
Chorley Borough Council,http://statistics.data.gov.uk/id/local-authority/30UE,Corporate Management,1008,Shared Service Arrangement,Training Course Fees,17010,Indirect Employee Expenses,5002, 23/12/2013 - CIEH - HHSRS  22/2 & 25/3,12/03/2014,93873,680.00,Revenue,Barclaycard Commercial,59848
Chorley Borough Council,http://statistics.data.gov.uk/id/local-authority/30UE,Corporate Management,1008,Shared Service Arrangement,Training Course Fees,17010,Indirect Employee Expenses,5002, 23/12/2013 - CIEH - CIEH Mapping Health Toolkit 24/02/14,12/03/2014,93873,170.00,Revenue,Barclaycard Commercial,59848
Chorley Borough Council,http://statistics.data.gov.uk/id/local-authority/30UE,Corporate Management,1008,Shared Service Arrangement,Training Course Fees,17010,Indirect Employee Expenses,5002, 23/12/2013 - CIEH - Plan for Env Prot 18/03/14,12/03/2014,93873,340.00,Revenue,Barclaycard Commercial,59848
Chorley Borough Council,http://statistics.data.gov.uk/id/local-authority/30UE,Local Tax Collection,1010,Shared Service Arrangement,Legal Fees,40171,Miscellaneous Expenses,5034, 16/12/2013 - HM Courts - Services - 478 liability orders,12/03/2014,93873,"1,434.00",Revenue,Barclaycard Commercial,59848
Chorley Borough Council,http://statistics.data.gov.uk/id/local-authority/30UE,Central Support Services,1009,Shared Service Arrangement,Legal Fees,40171,Miscellaneous Expenses,5034,03/12/2013 - County Court - Court Application Fee (Legal Services),12/03/2014,93873,45.00,Revenue,Barclaycard Commercial,59848
Chorley Borough Council,http://statistics.data.gov.uk/id/local-authority/30UE,Central Support Services,1009,Shared Service Arrangement,Tools & Equipment - Purchase,40003,"Equipment, Furniture & Materia",5023,10/12/2013 - Argos Retail Group - Purchase of MP3 Boombox ( Communications),12/03/2014,93873,25.94,Revenue,Barclaycard Commercial,59848
Chorley Borough Council,http://statistics.data.gov.uk/id/local-authority/30UE,Central Support Services,1009,Shared Service Arrangement,Publicity - Advertising,40157,Miscellaneous Expenses,5034,14/12/2013 - Facebook - Facebook Ads Payment (Communications),12/03/2014,93873,25.89,Revenue,Barclaycard Commercial,59848
Chorley Borough Council,http://statistics.data.gov.uk/id/local-authority/30UE,Unapportionable Central OHeads,1009,Shared Service Arrangement,Publicity - Advertising,40157,Miscellaneous Expenses,5034,15/12/2013 - Facebook - Facebook Ads Payment (Communications),12/03/2014,93873,27.87,Revenue,Barclaycard Commercial,59848
Chorley Borough Council,http://statistics.data.gov.uk/id/local-authority/30UE,Central Support Services,1009,Shared Service Arrangement,Publicity - Advertising,40157,Miscellaneous Expenses,5034,16/12/2013 - Facebook - Facebook Ads Payment (Communications),12/03/2014,93873,19.50,Revenue,Barclaycard Commercial,59848
Chorley Borough Council,http://statistics.data.gov.uk/id/local-authority/30UE,Unapportionable Central OHeads,1009,Shared Service Arrangement,Publicity - Advertising,40157,Miscellaneous Expenses,5034,18/12/2013 - Facebook - Facebook Ads Payment (Communications),12/03/2014,93873,16.97,Revenue,Barclaycard Commercial,59848
Chorley Borough Council,http://statistics.data.gov.uk/id/local-authority/30UE,Local Tax Collection,1010,Shared Service Arrangement,Computer Software-Maintenance,40107,Communication and Computing,5028,20/12/2013 - Sym Secure Site - SSL Web Server Wildcard ( ICT),12/03/2014,93873,"3,439.87",Revenue,Barclaycard Commercial,59848
Chorley Borough Council,http://statistics.data.gov.uk/id/local-authority/30UE,Central Support Services,1009,Shared Service Arrangement,Publicity - Advertising,40157,Miscellaneous Expenses,5034,21/12/2013 - Facebook - Facebook Ads Payment (Communications),12/03/2014,93873,18.00,Revenue,Barclaycard Commercial,59848
Chorley Borough Council,http://statistics.data.gov.uk/id/local-authority/30UE,Local Tax Collection,1010,Shared Service Arrangement,Legal Fees,40171,Miscellaneous Expenses,5034,12/12/2013 - HM Courts - Services - 25 liability orders,12/03/2014,93873,75.00,Revenue,Barclaycard Commercial,59848
Chorley Borough Council,http://statistics.data.gov.uk/id/local-authority/30UE,Local Tax Collection,1010,Shared Service Arrangement,Legal Fees,40171,Miscellaneous Expenses,5034,12/12/2013 - HM Courts - Services - 56 liability orders,12/03/2014,93873,168.00,Revenue,Barclaycard Commercial,59848
Chorley Borough Council,http://statistics.data.gov.uk/id/local-authority/30UE,Service Management & Support,1009,Shared Service Arrangement,Vehicle Excise Duty,30012,Direct Transport Costs,5016, 20/12/2013 - www.DVLA.Gov.uk - Vehicle Road Tax,12/03/2014,93873,222.50,Revenue,Barclaycard Commercial,59848
Chorley Borough Council,http://statistics.data.gov.uk/id/local-authority/30UE,Central Support Services,1009,Shared Service Arrangement,Computer Equipment-Purchase,40098,Communication and Computing,5028,7/1/2014 - Paypal Solarengry5 - New flip leather case cover for Apple iphone,26/03/2014,94187,11.97,Revenue,Barclaycard Commercial,59848
Chorley Borough Council,http://statistics.data.gov.uk/id/local-authority/30UE,Unapportionable Central OHeads,1009,Shared Service Arrangement,Computer Equipment-Purchase,40098,Communication and Computing,5028,7/1/2014 - Paypal Maikai Ltd - Buckle suede leather smart case cover ipad air,26/03/2014,94187,13.95,Revenue,Barclaycard Commercial,59848
Chorley Borough Council,http://statistics.data.gov.uk/id/local-authority/30UE,Central Support Services,1009,Shared Service Arrangement,Computer Equipment-Purchase,40098,Communication and Computing,5028,7/1/2014 - Paypal Darren - Tan leather wallet smart flip case ipad air,26/03/2014,94187,15.60,Revenue,Barclaycard Commercial,59848
Chorley Borough Council,http://statistics.data.gov.uk/id/local-authority/30UE,Unapportionable Central OHeads,1009,Shared Service Arrangement,Computer Equipment-Purchase,40098,Communication and Computing,5028,7/1/2014 - Paypal Archzilla - Tan leather stand case cover for Apple ipad air,26/03/2014,94187,8.99,Revenue,Barclaycard Commercial,59848
Chorley Borough Council,http://statistics.data.gov.uk/id/local-authority/30UE,Corporate Management,1008,Shared Service Arrangement,Training Course Fees,17010,Indirect Employee Expenses,5002,9/1/2014 - www.onlinestore.leedsmet - HACCP Auditing Training,26/03/2014,94187,190.00,Revenue,Barclaycard Commercial,59848
Chorley Borough Council,http://statistics.data.gov.uk/id/local-authority/30UE,Corporate Management,1008,Shared Service Arrangement,Training Course Fees,17010,Indirect Employee Expenses,5002, 9/1/2014 - www.onlinestore.leedsmet - Investigation of Food Poisoning Outbreaks,26/03/2014,94187,250.00,Revenue,Barclaycard Commercial,59848
Chorley Borough Council,http://statistics.data.gov.uk/id/local-authority/30UE,Economic Development,1096,Shared Service Arrangement,Promotional Expenses,40159,Miscellaneous Expenses,5034,9/1/2014 - Mailchimp - Monthly mailchimp,26/03/2014,94187,18.51,Revenue,Barclaycard Commercial,59848
Chorley Borough Council,http://statistics.data.gov.uk/id/local-authority/30UE,Unapportionable Central OHeads,1009,Shared Service Arrangement,Computer Equipment-Purchase,40098,Communication and Computing,5028,13/1/2014 - Scan Computers Intl Web - Samsung N9005 Gnote,26/03/2014,94187,378.32,Revenue,Barclaycard Commercial,59848
Chorley Borough Council,http://statistics.data.gov.uk/id/local-authority/30UE,Community Safety Crime Reduct,1043,Shared Service Arrangement,Training Course Fees,17010,Indirect Employee Expenses,5002,13/1/2014 - Paypal InstitureLi - Professional Licensing Practitioners Qualification,26/03/2014,94187,685.00,Revenue,Barclaycard Commercial,59848
Chorley Borough Council,http://statistics.data.gov.uk/id/local-authority/30UE,Corporate Management,1008,Shared Service Arrangement,Training Course Fees,17010,Indirect Employee Expenses,5002,22/1/2014 - CIEH - Understanding and Applying HHSRS,26/03/2014,94187,540.00,Revenue,Barclaycard Commercial,59848
Chorley Borough Council,http://statistics.data.gov.uk/id/local-authority/30UE,Corporate Management,1008,Shared Service Arrangement,Training Allowance,14005,Direct Employee Expenses,5001,22/1/2014 - CIEH - Understanding and Applying HHSRS,26/03/2014,94187,340.00,Revenue,Barclaycard Commercial,59848
Chorley Borough Council,http://statistics.data.gov.uk/id/local-authority/30UE,Service Management & Support,1009,Shared Service Arrangement,Vehicle Excise Duty,30012,Direct Transport Costs,5016,22/1/2014 - www.dvla.gov.uk - Vehicle Road Tax,26/03/2014,94187,222.50,Revenue,Barclaycard Commercial,59848
Chorley Borough Council,http://statistics.data.gov.uk/id/local-authority/30UE,Unapportionable Central OHeads,1009,Shared Service Arrangement,Computer Software-Purchase,40100,Communication and Computing,5028,30/1/2014 - Apple Itunes Store  - Windows Domain Password Change & Reminder,26/03/2014,94188,2.60,Revenue,Barclaycard Commercial,59848
Chorley Borough Council,http://statistics.data.gov.uk/id/local-authority/30UE,Economic Development,1096,Shared Service Arrangement,Promotional Expenses,40159,Miscellaneous Expenses,5034,9/2/2014 - Mailchimp - Mailchimp,26/03/2014,94188,18.60,Revenue,Barclaycard Commercial,59848
Chorley Borough Council,http://statistics.data.gov.uk/id/local-authority/30UE,Local Tax Collection,1010,Shared Service Arrangement,Legal Fees,40171,Miscellaneous Expenses,5034,31/1/2014 - HM Courts - Services - 443 liability orders,26/03/2014,94188,"1,329.00",Revenue,Barclaycard Commercial,59848
Chorley Borough Council,http://statistics.data.gov.uk/id/local-authority/30UE,Local Tax Collection,1010,Shared Service Arrangement,Legal Fees,40171,Miscellaneous Expenses,5034,14/2/2014 - HM Courts - Services - 39 liability orders,26/03/2014,94188,117.00,Revenue,Barclaycard Commercial,59848
Chorley Borough Council,http://statistics.data.gov.uk/id/local-authority/30UE,Local Tax Collection,1010,Shared Service Arrangement,Legal Fees,40171,Miscellaneous Expenses,5034,17/2/2014 - HM Courts - Services - 269 liability orders,26/03/2014,94188,807.00,Revenue,Barclaycard Commercial,59848
Chorley Borough Council,http://statistics.data.gov.uk/id/local-authority/30UE,Corporate Management,1008,Shared Service Arrangement,Bank Charges,40151,Miscellaneous Expenses,5034,credit card,12/03/2014,93947,295.72,Revenue,Barclaycard Merchant Services,61601
Chorley Borough Council,http://statistics.data.gov.uk/id/local-authority/30UE,Corporate Management,1008,Shared Service Arrangement,Bank Charges,40151,Miscellaneous Expenses,5034,credit card,12/03/2014,93947,5.80,Revenue,Barclaycard Merchant Services,61601
Chorley Borough Council,http://statistics.data.gov.uk/id/local-authority/30UE,Corporate Management,1008,Shared Service Arrangement,Bank Charges,40151,Miscellaneous Expenses,5034,credit card,12/03/2014,93948,467.99,Revenue,Barclaycard Merchant Services,61601
Chorley Borough Council,http://statistics.data.gov.uk/id/local-authority/30UE,Corporate Management,1008,Shared Service Arrangement,Bank Charges,40151,Miscellaneous Expenses,5034,credit card,12/03/2014,93948,5.80,Revenue,Barclaycard Merchant Services,61601
Chorley Borough Council,http://statistics.data.gov.uk/id/local-authority/30UE,Corporate Management,1008,Shared Service Arrangement,Bank Charges,40151,Miscellaneous Expenses,5034,credit card,12/03/2014,93950,367.69,Revenue,Barclaycard Merchant Services,61601
Chorley Borough Council,http://statistics.data.gov.uk/id/local-authority/30UE,Corporate Management,1008,Shared Service Arrangement,Bank Charges,40151,Miscellaneous Expenses,5034,credit card,12/03/2014,93950,5.80,Revenue,Barclaycard Merchant Services,61601
Chorley Borough Council,http://statistics.data.gov.uk/id/local-authority/30UE,Corporate Management,1008,Shared Service Arrangement,Bank Charges,40151,Miscellaneous Expenses,5034,Transaction Charges,26/03/2014,94114,325.69,Revenue,Barclaycard Merchant Services,61601
Chorley Borough Council,http://statistics.data.gov.uk/id/local-authority/30UE,Central Support Services,1009,Policy & Performance,Exhibitions & Special Events,40158,Miscellaneous Expenses,5034,Rock FM - Airtime,21/03/2014,94098,375.40,Revenue,Bauer Active Ltd,50574
Chorley Borough Council,http://statistics.data.gov.uk/id/local-authority/30UE,Unapportionable Central OHeads,1009,"Customer, ICT & Transactional",Consultants` Fees,40077,Services,5027,"Consultancy Fees January 2014 (12 days) 7/1/2014-9/1/201414/1/2014-16/1/201421/1/2014-23/1/2014",12/03/2014,93769,"1,800.00",Revenue,REDACTED PERSONAL DATA,22238
Chorley Borough Council,http://statistics.data.gov.uk/id/local-authority/30UE,Central Support Services,1009,Shared Service Arrangement,External Contractor,40198,Miscellaneous Expenses,5034,Provision of Payroll Services 2013 - 2014,31/03/2014,93791,"4,419.52",Revenue,Blackpool Borough Council,16518
Chorley Borough Council,http://statistics.data.gov.uk/id/local-authority/30UE,Central Support Services,1009,Shared Service Arrangement,External Contractor,40198,Miscellaneous Expenses,5034,Provision of Payroll Services 2013 - 2014,31/03/2014,93791,312.00,Revenue,Blackpool Borough Council,16518
Chorley Borough Council,http://statistics.data.gov.uk/id/local-authority/30UE,Corporate Management,1008,Streetscene & Leisure Contracts,External Contractor,40198,Miscellaneous Expenses,5034,Central heating installation at Chorley Lane under Affordable Warmth Project 2013-14,26/03/2014,94197,500.00,Revenue,REDACTED PERSONAL DATA,64086
Chorley Borough Council,http://statistics.data.gov.uk/id/local-authority/30UE,Democratic Represent and  Mgnt,1007,Health Environment & Neighbourhoods,Children's Activities,40188,Miscellaneous Expenses,5034,Delivery of Punch and Judy on 22nd Feb at Chorley Town Hall,12/03/2014,93885,250.00,Revenue,Brian Gore,18370
Chorley Borough Council,http://statistics.data.gov.uk/id/local-authority/30UE,Central Support Services,1009,"Customer, ICT & Transactional",Network Line Rental,40248,Communication and Computing,5028,private circuit bill,31/03/2014,94052,321.74,Revenue,British Telecommunications Plc,17131
Chorley Borough Council,http://statistics.data.gov.uk/id/local-authority/30UE,Central Support Services,1009,"Customer, ICT & Transactional",Computer Equipment-Purchase,40098,Communication and Computing,5028,ASUS NEXUS 7C TABLET 4G LTE 32GB,19/03/2014,93906,254.61,Revenue,BT Business Direct Ltd,63990
Chorley Borough Council,http://statistics.data.gov.uk/id/local-authority/30UE,Corporate Management,1008,Health Environment & Neighbourhoods,Telephones - Rentals,40083,Communication and Computing,5028,recare vision - analogue legacy rental,19/03/2014,94051,"1,725.23",Revenue,BT Redcare,21115
Chorley Borough Council,http://statistics.data.gov.uk/id/local-authority/30UE,Democratic Represent and  Mgnt,1007,Streetscene & Leisure Contracts,Signs:Provision & Maintenance,20065,Grounds Maintenance Costs,5013,Highway C2 fast setting mortar delivered,19/03/2014,94041,412.00,Revenue,C & W BERRY LIMITED,18180
Chorley Borough Council,http://statistics.data.gov.uk/id/local-authority/30UE,Service Management & Support,1009,Streetscene & Leisure Contracts,Supplies-Grounds Maintenance,40025,"Equipment, Furniture & Materia",5023,Highway C2 fast setting mortar delivered,19/03/2014,94043,412.00,Revenue,C & W BERRY LIMITED,18180
Chorley Borough Council,http://statistics.data.gov.uk/id/local-authority/30UE,Central Support Services,1009,Streetscene & Leisure Contracts,Refuse Collection,20037,Cleaning and Domestic Supplies,5012,Empty intercepter,12/03/2014,93659,300.00,Revenue,C J Lyon,16579
Chorley Borough Council,http://statistics.data.gov.uk/id/local-authority/30UE,Central Support Services,1009,Streetscene & Leisure Contracts,Refuse Collection,20037,Cleaning and Domestic Supplies,5012,Emotying of interceptor tank and cleaning of gullies at Bengal St depot from 01/04/2013 to 31/03/2014,31/03/2014,94198,300.00,Revenue,C J Lyon,16579
Chorley Borough Council,http://statistics.data.gov.uk/id/local-authority/30UE,Service Management & Support,1009,Streetscene & Leisure Contracts,Vehicle Maintenance,30045,Direct Transport Costs,5016,Recover DK56 JWL after clutch fault. Supply and fit new clutch assembly,26/03/2014,94201,823.75,Revenue,C P Davidson & Sons Ltd,21093
Chorley Borough Council,http://statistics.data.gov.uk/id/local-authority/30UE,Service Management & Support,1009,Streetscene & Leisure Contracts,Vehicle Maintenance,30045,Direct Transport Costs,5016,Remove and fit new front spring assenbly on DK57KVT as required after driver report.,26/03/2014,94203,676.42,Revenue,C P Davidson & Sons Ltd,21093
Chorley Borough Council,http://statistics.data.gov.uk/id/local-authority/30UE,Central Support Services,1009,"Customer, ICT & Transactional",Emergency Call Out System,40096,Communication and Computing,5028,Call Charges January 2013,19/03/2014,93533,532.48,Revenue,CallCare Ltd,20257
Chorley Borough Council,http://statistics.data.gov.uk/id/local-authority/30UE,Unapportionable Central OHeads,1009,"Customer, ICT & Transactional",Emergency Call Out System,40096,Communication and Computing,5028,Standing Charge February 2014,19/03/2014,93533,120.00,Revenue,CallCare Ltd,20257
Chorley Borough Council,http://statistics.data.gov.uk/id/local-authority/30UE,Unapportionable Central OHeads,1009,"Customer, ICT & Transactional",Emergency Call Out System,40096,Communication and Computing,5028,Call Charges February 2014,31/03/2014,93978,597.76,Revenue,CallCare Ltd,20257
Chorley Borough Council,http://statistics.data.gov.uk/id/local-authority/30UE,Central Support Services,1009,"Customer, ICT & Transactional",Emergency Call Out System,40096,Communication and Computing,5028,Standing Charge March 2014,31/03/2014,93978,220.00,Revenue,CallCare Ltd,20257
Chorley Borough Council,http://statistics.data.gov.uk/id/local-authority/30UE,Unapportionable Central OHeads,1009,Governance,Mayoral Hospitality,40123,Expenses,5030,Deposit for proviiding catering at the Mayor`s Civic Dinner on Friday 6th June 2014.,12/03/2014,93916,"1,196.00",Revenue,Camerons Restaurant Ltd,53731
Chorley Borough Council,http://statistics.data.gov.uk/id/local-authority/30UE,Democratic Represent and  Mgnt,1007,Governance,Members Hospitality,40122,Expenses,5030,Elegant Buffet for 50 people at Town Hall on Tuesday 1st April 2014 @ 7.65 + vat,26/03/2014,94204,382.50,Revenue,Camerons Restaurant Ltd,53731
Chorley Borough Council,http://statistics.data.gov.uk/id/local-authority/30UE,Community Safety Crime Reduct,1043,Health Environment & Neighbourhoods,Tools & Equipment - Maintenance,40005,"Equipment, Furniture & Materia",5023,"Calibration to UKAS standard of the following equipment:2 x Nor 140 systems at 295 each x Nor 1251 calibrator at 57 ",05/03/2014,93812,533.00,Revenue,Campbell Associates,21084
Chorley Borough Council,http://statistics.data.gov.uk/id/local-authority/30UE,Local Tax Collection,1010,"Customer, ICT & Transactional",Consultants` Fees,40077,Services,5027,Proprint Consultancy Day (discounted rate),05/03/2014,93810,333.34,Revenue,Capita Business Services Ltd,17151
Chorley Borough Council,http://statistics.data.gov.uk/id/local-authority/30UE,Local Tax Collection,1010,"Customer, ICT & Transactional",Consultants` Fees,40077,Services,5027,Proprint Consultancy Day (discounted rate),05/03/2014,93810,333.33,Revenue,Capita Business Services Ltd,17151
Chorley Borough Council,http://statistics.data.gov.uk/id/local-authority/30UE,Housing Benefit Administration,1077,"Customer, ICT & Transactional",Consultants` Fees,40077,Services,5027,Proprint Consultancy Day (discounted rate),05/03/2014,93810,333.33,Revenue,Capita Business Services Ltd,17151
Chorley Borough Council,http://statistics.data.gov.uk/id/local-authority/30UE,Local Tax Collection,1010,"Customer, ICT & Transactional",Consultants` Fees,40077,Services,5027,Capita Revenues & Benefits EOY Support,19/03/2014,94070,"3,037.50",Revenue,Capita Business Services Ltd,17151
Chorley Borough Council,http://statistics.data.gov.uk/id/local-authority/30UE,Local Tax Collection,1010,"Customer, ICT & Transactional",IT Software - Annual Licences,40101,Communication and Computing,5028,Revenues & Benefits solution incuding annual licence,31/03/2014,94130,"15,210.00",Revenue,Capita Business Services Ltd,17151
Chorley Borough Council,http://statistics.data.gov.uk/id/local-authority/30UE,Local Tax Collection,1010,"Customer, ICT & Transactional",IT Software - Annual Licences,40101,Communication and Computing,5028,Revenues & Benefits solution incuding annual licence,31/03/2014,94130,"8,872.50",Revenue,Capita Business Services Ltd,17151
Chorley Borough Council,http://statistics.data.gov.uk/id/local-authority/30UE,Housing Benefit Administration,1077,"Customer, ICT & Transactional",IT Software - Annual Licences,40101,Communication and Computing,5028,Revenues & Benefits solution incuding annual licence,31/03/2014,94130,"18,167.50",Revenue,Capita Business Services Ltd,17151
Chorley Borough Council,http://statistics.data.gov.uk/id/local-authority/30UE,Housing Benefit Administration,1077,"Customer, ICT & Transactional",Computer Software-Additional,40102,Communication and Computing,5028,"Benefit cap, PIP & ATLAS ETD replacement software changes",26/03/2014,94172,"4,164.44",Revenue,Capita Business Services Ltd,17151
Chorley Borough Council,http://statistics.data.gov.uk/id/local-authority/30UE,Local Tax Collection,1010,"Customer, ICT & Transactional",Computer - Support Services,40111,Communication and Computing,5028,Fixed price - remote support services,31/03/2014,94266,"11,430.00",Revenue,Capita Business Services Ltd,17151
Chorley Borough Council,http://statistics.data.gov.uk/id/local-authority/30UE,Local Tax Collection,1010,"Customer, ICT & Transactional",Computer - Support Services,40111,Communication and Computing,5028,Fixed price - remote support services,31/03/2014,94266,"6,667.00",Revenue,Capita Business Services Ltd,17151
Chorley Borough Council,http://statistics.data.gov.uk/id/local-authority/30UE,Housing Benefit Administration,1077,"Customer, ICT & Transactional",Computer - Support Services,40111,Communication and Computing,5028,Fixed price - remote support services,31/03/2014,94266,"13,653.00",Revenue,Capita Business Services Ltd,17151
Chorley Borough Council,http://statistics.data.gov.uk/id/local-authority/30UE,Parking Services,1066,Streetscene & Leisure Contracts,External Contractors,50008,Private Contractors,5042,Provision of notice processing services as agreed in Lancashire Contract. 320 PCNs per month.,26/03/2014,94032,674.79,Revenue,Chipside Ltd,22063
Chorley Borough Council,http://statistics.data.gov.uk/id/local-authority/30UE,Parking Services,1066,Streetscene & Leisure Contracts,External Contractors,50008,Private Contractors,5042,Provision of notice processing services as agreed in Lancashire Contract. 320 PCNs per month.,26/03/2014,94045,"1,711.30",Revenue,Chipside Ltd,22063
Chorley Borough Council,http://statistics.data.gov.uk/id/local-authority/30UE,Corporate Management,1008,Health Environment & Neighbourhoods,Taxi Testing & Vehicle Safety Report,40234,Services,5027,MOT,14/03/2014,93927,493.65,Revenue,Chorley Autocare Ltd,17110
Chorley Borough Council,http://statistics.data.gov.uk/id/local-authority/30UE,Corporate Management,1008,Health Environment & Neighbourhoods,Taxi Testing & Vehicle Safety Report,40234,Services,5027,MOT,14/03/2014,93927,76.95,Revenue,Chorley Autocare Ltd,17110
Chorley Borough Council,http://statistics.data.gov.uk/id/local-authority/30UE,Economic Development,1096,Economic Development,Miscellaneous Expenses,40200,Miscellaneous Expenses,5034,Contribution to Apprentice Costs over 2 years,19/03/2014,94010,"13,000.00",Revenue,Chorley Community Housing,20531
Chorley Borough Council,http://statistics.data.gov.uk/id/local-authority/30UE,Democratic Represent and  Mgnt,1007,Governance,Mayoral Hospitality,40123,Expenses,5030,Buffet for 150 @ 3.50 per head for Mayor`s Charity Gala on 28th March 2014,31/03/2014,94265,525.00,Revenue,Chorley Event Management,39664
Chorley Borough Council,http://statistics.data.gov.uk/id/local-authority/30UE,Central Support Services,1009,Shared Service Arrangement,Training Course Fees,17010,Indirect Employee Expenses,5002,CIPFA Diploma Public Finance & Taxation day release,31/03/2014,94173,710.00,Revenue,CIPFA,16201
Chorley Borough Council,http://statistics.data.gov.uk/id/local-authority/30UE,Unapportionable Central OHeads,1009,Shared Service Arrangement,Training Course Fees,17010,Indirect Employee Expenses,5002,CIPFA Diploma  Public Finance & Taxation revision course 14th & 15th May,31/03/2014,94173,260.00,Revenue,CIPFA,16201
Chorley Borough Council,http://statistics.data.gov.uk/id/local-authority/30UE,Central Support Services,1009,Shared Service Arrangement,Training Course Fees,17010,Indirect Employee Expenses,5002,CIPFA Diploma  Public Finance & Taxation exam fee,31/03/2014,94173,80.00,Revenue,CIPFA,16201
Chorley Borough Council,http://statistics.data.gov.uk/id/local-authority/30UE,Central Support Services,1009,Shared Service Arrangement,Service Fees,40056,Services,5027,TISonline full subscription 01 Apr 2014 - 31 Mar 2015,12/03/2014,93843,"2,515.00",Revenue,CIPFA Business Ltd,16247
Chorley Borough Council,http://statistics.data.gov.uk/id/local-authority/30UE,Corporate Management,1008,Streetscene & Leisure Contracts,Training Course Fees,17010,Indirect Employee Expenses,5002,"Signing, Lighting and Guarding Training",31/03/2014,94239,"3,465.00",Revenue,Citrus Training Limited,64350
Chorley Borough Council,http://statistics.data.gov.uk/id/local-authority/30UE,Economic Development,1096,Economic Development,Fixtures & Fittings - Purchase,20027,Fixtures and Fittings,5010,Please supply x4 double gazebos,19/03/2014,93999,"3,760.00",Revenue,City B Group Ltd,47300
Chorley Borough Council,http://statistics.data.gov.uk/id/local-authority/30UE,Central Support Services,1009,Shared Service Arrangement,IT Software - Annual Licences,40101,Communication and Computing,5028,Authority Financials System - 1 April 2014 to 31 March 2015,12/03/2014,93661,"34,815.48",Revenue,Civica UK Limited,17463
Chorley Borough Council,http://statistics.data.gov.uk/id/local-authority/30UE,Central Support Services,1009,Shared Service Arrangement,IT Software - Annual Licences,40101,Communication and Computing,5028,Authority Financials System - Kofax Ascent Capture - 1 April 2014 to 31 March 2015,12/03/2014,93661,393.47,Revenue,Civica UK Limited,17463
Chorley Borough Council,http://statistics.data.gov.uk/id/local-authority/30UE,Unapportionable Central OHeads,1009,Shared Service Arrangement,IT Software - Annual Licences,40101,Communication and Computing,5028,Authority Financials System - Kofax XtrataPro - 1 April 2014 to 31 March 2015,12/03/2014,93661,"1,466.55",Revenue,Civica UK Limited,17463
Chorley Borough Council,http://statistics.data.gov.uk/id/local-authority/30UE,Unapportionable Central OHeads,1009,Shared Service Arrangement,Training Course Fees,17010,Indirect Employee Expenses,5002,FAO Robert Smith - 2 places on the Civica Financials Alerters training course being held at the Civica Leeds offices Friday,05/03/2014,93720,600.00,Revenue,Civica UK Limited,17463
Chorley Borough Council,http://statistics.data.gov.uk/id/local-authority/30UE,Unapportionable Central OHeads,1009,Shared Service Arrangement,IT Software - Annual Licences,40101,Communication and Computing,5028,ICON Hosted - Upgrade Annual Subscription + Transaction Charges - Year 2(01/04/2014 to 31/03/2015),26/03/2014,94144,"12,850.00",Revenue,Civica UK Limited,17463
Chorley Borough Council,http://statistics.data.gov.uk/id/local-authority/30UE,Service Management & Support,1009,Streetscene & Leisure Contracts,Tools & Equipment - Purchase,40003,"Equipment, Furniture & Materia",5023,Supply Husqvarna mower model WB53 SE at price quoted ,12/03/2014,93780,600.00,Revenue,Clarke & Pulman Ltd,17745
Chorley Borough Council,http://statistics.data.gov.uk/id/local-authority/30UE,Housing Advice,1071,Streetscene & Leisure Contracts,Other Contributions,40145,Grants and Subscriptions,5031,Rural outreach activities on behalf of CBC for the Affordable Warmth Project 2013-14,12/03/2014,93652,"1,500.00",Revenue,Community Futures,18236
Chorley Borough Council,http://statistics.data.gov.uk/id/local-authority/30UE,Service Management & Support,1009,Streetscene & Leisure Contracts,Supplies-Grounds Maintenance,40025,"Equipment, Furniture & Materia",5023,1 Balmoral Bench 1.8m Stainless steel plaque 8``x2``,19/03/2014,94080,370.83,Revenue,Cyan,61782
Chorley Borough Council,http://statistics.data.gov.uk/id/local-authority/30UE,Central Support Services,1009,Chief Executives Office,Furniture - Maintenance,40014,"Equipment, Furniture & Materia",5023,Breakdown Service Cover (including call outs and annual maintenance visit)  for Sirocco 1080 Laminator Serial No K50150. ,19/03/2014,93984,300.00,Revenue,D & P E Services,39507
Chorley Borough Council,http://statistics.data.gov.uk/id/local-authority/30UE,Service Management & Support,1009,Streetscene & Leisure Contracts,External Contractor,40198,Miscellaneous Expenses,5034,Collection of Instorical cannons from South Wales as per conversation. collected on 26/02/2014 and delivered,12/03/2014,93883,650.00,Revenue,D Cain & Son Ltd,21353
Chorley Borough Council,http://statistics.data.gov.uk/id/local-authority/30UE,Service Management & Support,1009,Streetscene & Leisure Contracts,Hire Of Transport,30028,Contrct Hire & Operating Lease,5018,Hire of Johnston VT650 for Chorley Council from 20-01-2014 through to 31-03-2014 for 10 week period at price quoted.,21/03/2014,93911,"2,340.00",Revenue,Dawson Rental Sweepers,22011
Chorley Borough Council,http://statistics.data.gov.uk/id/local-authority/30UE,Service Management & Support,1009,Streetscene & Leisure Contracts,Hire Of Transport,30028,Contrct Hire & Operating Lease,5018,Hire of Schnidt Swingo 250 for Chorley Council from 20-01-2014 through to 31-03-2014 for 10 week period at price quoted,12/03/2014,93937,"1,880.00",Revenue,Dawson Rental Sweepers,22011
Chorley Borough Council,http://statistics.data.gov.uk/id/local-authority/30UE,Service Management & Support,1009,Streetscene & Leisure Contracts,Hire Of Transport,30028,Contrct Hire & Operating Lease,5018,Hire of Schnidt Swingo 250 for Chorley Council from 20-01-2014 through to 31-03-2014 for 10 week period at price quoted,12/03/2014,93938,564.00,Revenue,Dawson Rental Sweepers,22011
Chorley Borough Council,http://statistics.data.gov.uk/id/local-authority/30UE,Service Management & Support,1009,Streetscene & Leisure Contracts,Hire Of Transport,30028,Contrct Hire & Operating Lease,5018,Hire of Schnidt Swingo 250 for Chorley Council from 20-01-2014 through to 31-03-2014 for 10 week period at price quoted,21/03/2014,94096,"1,316.00",Revenue,Dawson Rental Sweepers,22011
Chorley Borough Council,http://statistics.data.gov.uk/id/local-authority/30UE,Collection Fund Revenue Accoun,,Shared Service Arrangement,NNDR Central Share,2034,Precepts & Collection Fund,Precept,dclg,12/03/2014,93956,"1,041,081.00",Revenue,Department of Communities and Local Government,16280
Chorley Borough Council,http://statistics.data.gov.uk/id/local-authority/30UE,Non Domestic Rates Redistribut,,Shared Service Arrangement,Tariff to Central Government,49000,Expenditure not in NCOS,,dclg,12/03/2014,93956,"599,963.00",Revenue,Department of Communities and Local Government,16280
Chorley Borough Council,http://statistics.data.gov.uk/id/local-authority/30UE,Democratic Represent and  Mgnt,1007,Streetscene & Leisure Contracts,Signs:Provision & Maintenance,20065,Grounds Maintenance Costs,5013,"8`6""  x 10`` x 5`` railway sleeper - brown - To be delivered to Bengal Street Depot -  PR7 1SA",12/03/2014,93882,747.50,Revenue,Derek Fox & Sons,50884
Chorley Borough Council,http://statistics.data.gov.uk/id/local-authority/30UE,Economic Development,1096,Economic Development,Promotional Expenses,40159,Miscellaneous Expenses,5034,Boost your Business - Digital Media Capacity Building - 5 x workshops Cost 1000 plus VAT,31/03/2014,94206,"1,200.00",Revenue,DigiEnable,57999
Chorley Borough Council,http://statistics.data.gov.uk/id/local-authority/30UE,Corporate Management,1008,Shared Service Arrangement,CRB Disclosure Fees,40070,Services,5027,DBS Checks,31/03/2014,94235,308.00,Revenue,Disclosure & Barring Service,16387
Chorley Borough Council,http://statistics.data.gov.uk/id/local-authority/30UE,Unapportionable Central OHeads,1009,Governance,Training Course Fees,17010,Indirect Employee Expenses,5002,Seminar TUPE transfers in the public sector - 27 February 2014 - Manchester,31/03/2014,93656,350.00,Revenue,DLA Piper Rudnick Gray Cary UK LLP,18225
Chorley Borough Council,http://statistics.data.gov.uk/id/local-authority/30UE,Democratic Represent and  Mgnt,1007,Streetscene & Leisure Contracts,Miscellaneous Expenses,40200,Miscellaneous Expenses,5034,Astley Hall donations box,21/03/2014,93998,909.00,Revenue,donationboxes.co.uk Ltd,64097
Chorley Borough Council,http://statistics.data.gov.uk/id/local-authority/30UE,Central Support Services,1009,"Customer, ICT & Transactional",Mobile Phones,40086,Communication and Computing,5028,"2 year contract. SIMs only. 70 users x 2.50 per month x 2 years = 4,200. Please supply 67 nano and 3 micro SIMs.",31/03/2014,94269,395.70,Revenue,EE LIMITED,63366
Chorley Borough Council,http://statistics.data.gov.uk/id/local-authority/30UE,Community Development,1097,Governance,Rent/Hire Of Premises,20017,Premises Rents,5007,Annual Rent ADDRESS REDACTED,31/03/2014,94259,"3,125.00",Revenue,Elmwood Property Investments Limited,60926
Chorley Borough Council,http://statistics.data.gov.uk/id/local-authority/30UE,Service Management & Support,1009,Streetscene & Leisure Contracts,Diesel/Derv,30007,Direct Transport Costs,5016,Supply 8000 Litres of road diesel at price quoted via the chest. To be delivered on 20/02/2014 am delivery,12/03/2014,93903,"8,792.00",Revenue,EmoOil Ltd,19926
Chorley Borough Council,http://statistics.data.gov.uk/id/local-authority/30UE,Democratic Represent and  Mgnt,1007,Streetscene & Leisure Contracts,Rent/Hire Of Premises,20017,Premises Rents,5007,Rent For Period 25/03/2014 to 23/06/2014,19/03/2014,94020,"10,625.00",Revenue,European Settled Estates Plc,16495
Chorley Borough Council,http://statistics.data.gov.uk/id/local-authority/30UE,Democratic Represent and  Mgnt,1007,Streetscene & Leisure Contracts,Rent/Hire Of Premises,20017,Premises Rents,5007,Service Charge on Acc,19/03/2014,94020,"1,125.00",Revenue,European Settled Estates Plc,16495
Chorley Borough Council,http://statistics.data.gov.uk/id/local-authority/30UE,Democratic Represent and  Mgnt,1007,Streetscene & Leisure Contracts,Signs:Provision & Maintenance,20065,Grounds Maintenance Costs,5013,"Native Shrubs:-Holly 2L x 30, Hazel 90-120 x 24, Yew 2L x 12, Blackthorn 90 - 120 x 12, Guelder Rose 90 - 120 x 12, Dog",19/03/2014,93980,332.06,Revenue,Everglades Nurseries Ltd,20202
Chorley Borough Council,http://statistics.data.gov.uk/id/local-authority/30UE,Service Management & Support,1009,Streetscene & Leisure Contracts,Supplies-Grounds Maintenance,40025,"Equipment, Furniture & Materia",5023,"14 trees (Different varieties) - Cherries, Silver Birch, Ash, Fir, Pear & Apple 50 Shrubs Different varieties ",31/03/2014,94256,547.75,Revenue,Everglades Nurseries Ltd,20202
Chorley Borough Council,http://statistics.data.gov.uk/id/local-authority/30UE,Service Management & Support,1009,Streetscene & Leisure Contracts,Supplies-Grounds Maintenance,40025,"Equipment, Furniture & Materia",5023,Pear Conference,31/03/2014,94256,16.25,Revenue,Everglades Nurseries Ltd,20202
Chorley Borough Council,http://statistics.data.gov.uk/id/local-authority/30UE,Service Management & Support,1009,Streetscene & Leisure Contracts,Supplies-Grounds Maintenance,40025,"Equipment, Furniture & Materia",5023,Coxes Pipin,31/03/2014,94256,16.25,Revenue,Everglades Nurseries Ltd,20202
Chorley Borough Council,http://statistics.data.gov.uk/id/local-authority/30UE,Local Tax Collection,1010,"Customer, ICT & Transactional",Service Fees,40056,Services,5027,Bank wizard 3 annual licence,05/03/2014,93633,"1,182.99",Revenue,Experian Limited,17797
Chorley Borough Council,http://statistics.data.gov.uk/id/local-authority/30UE,Local Tax Collection,1010,"Customer, ICT & Transactional",Service Fees,40056,Services,5027,Bank wizard 3 annual licence,05/03/2014,93633,"1,182.99",Revenue,Experian Limited,17797
Chorley Borough Council,http://statistics.data.gov.uk/id/local-authority/30UE,Housing Benefit Administration,1077,"Customer, ICT & Transactional",Service Fees,40056,Services,5027,Bank wizard 3 annual licence,05/03/2014,93633,"1,182.98",Revenue,Experian Limited,17797
Chorley Borough Council,http://statistics.data.gov.uk/id/local-authority/30UE,Service Management & Support,1009,Streetscene & Leisure Contracts,Hire Of Transport,30028,Contrct Hire & Operating Lease,5018,Hire of tractor,12/03/2014,93653,"1,490.76",Revenue,F R Sharrock Ltd,18091
Chorley Borough Council,http://statistics.data.gov.uk/id/local-authority/30UE,Service Management & Support,1009,Streetscene & Leisure Contracts,Tools & Equipment - Maintenance,40005,"Equipment, Furniture & Materia",5023,Supply crankshaft No 13310-zmo-610 already supplied,12/03/2014,93936,96.92,Revenue,F R Sharrock Ltd,18091
Chorley Borough Council,http://statistics.data.gov.uk/id/local-authority/30UE,Service Management & Support,1009,Streetscene & Leisure Contracts,Tools & Equipment - Maintenance,40005,"Equipment, Furniture & Materia",5023,Supply oil seal No91202-zl8-003 already supplied,12/03/2014,93936,5.41,Revenue,F R Sharrock Ltd,18091
Chorley Borough Council,http://statistics.data.gov.uk/id/local-authority/30UE,Service Management & Support,1009,Streetscene & Leisure Contracts,Tools & Equipment - Maintenance,40005,"Equipment, Furniture & Materia",5023,Supply recoil assembly No 28400-zom801 already supplied,12/03/2014,93936,58.83,Revenue,F R Sharrock Ltd,18091
Chorley Borough Council,http://statistics.data.gov.uk/id/local-authority/30UE,Service Management & Support,1009,Streetscene & Leisure Contracts,Tools & Equipment - Maintenance,40005,"Equipment, Furniture & Materia",5023,Supply recoil assembly No28400-zmo already supplied,12/03/2014,93936,60.63,Revenue,F R Sharrock Ltd,18091
Chorley Borough Council,http://statistics.data.gov.uk/id/local-authority/30UE,Service Management & Support,1009,Streetscene & Leisure Contracts,Tools & Equipment - Maintenance,40005,"Equipment, Furniture & Materia",5023,Supply throttle cables No 579203501 already supplied,12/03/2014,93936,66.24,Revenue,F R Sharrock Ltd,18091
Chorley Borough Council,http://statistics.data.gov.uk/id/local-authority/30UE,Service Management & Support,1009,Streetscene & Leisure Contracts,Tools & Equipment - Purchase,40003,"Equipment, Furniture & Materia",5023,Supply Wessex tractor riple mower as per your quote via the chest. ,21/03/2014,93983,"19,722.50",Revenue,F R Sharrock Ltd,18091
Chorley Borough Council,http://statistics.data.gov.uk/id/local-authority/30UE,Service Management & Support,1009,Streetscene & Leisure Contracts,Freight Transport Assoc Fees,40150,Grants and Subscriptions,5031,Carryout 6 weekly safety inspections on DK05CXG to comply Olicence,19/03/2014,94038,112.30,Revenue,Freight Transport Assoc Ltd,16333
Chorley Borough Council,http://statistics.data.gov.uk/id/local-authority/30UE,Service Management & Support,1009,Streetscene & Leisure Contracts,Freight Transport Assoc Fees,40150,Grants and Subscriptions,5031,Carryout 6 weekly safety inspection on PN02HRL for Olicence compliance,19/03/2014,94038,112.30,Revenue,Freight Transport Assoc Ltd,16333
Chorley Borough Council,http://statistics.data.gov.uk/id/local-authority/30UE,Service Management & Support,1009,Streetscene & Leisure Contracts,Freight Transport Assoc Fees,40150,Grants and Subscriptions,5031,Carryout 6 weekly safety inspection on DK56JWL for Olicence compliance,19/03/2014,94038,112.30,Revenue,Freight Transport Assoc Ltd,16333
Chorley Borough Council,http://statistics.data.gov.uk/id/local-authority/30UE,Service Management & Support,1009,Streetscene & Leisure Contracts,Freight Transport Assoc Fees,40150,Grants and Subscriptions,5031,Carryout 6 weekly safety inspection on DX55CVG for Olicence compliance,19/03/2014,94038,112.30,Revenue,Freight Transport Assoc Ltd,16333
Chorley Borough Council,http://statistics.data.gov.uk/id/local-authority/30UE,Economic Development,1096,Economic Development,Grants To Other Organisations,40127,Grants and Subscriptions,5031,Business Rate Subsidy 1,31/03/2014,94238,492.20,Revenue,Gaurav Dhar,62061
Chorley Borough Council,http://statistics.data.gov.uk/id/local-authority/30UE,Business Support,1095,Governance,Gas,20014,Energy Costs,5006,Gas,05/03/2014,93707,296.15,Revenue,Gazprom Energy,56502
Chorley Borough Council,http://statistics.data.gov.uk/id/local-authority/30UE,Business Support,1095,Governance,Gas,20014,Energy Costs,5006,Energy Costs,05/03/2014,93708,945.90,Revenue,Gazprom Energy,56502
Chorley Borough Council,http://statistics.data.gov.uk/id/local-authority/30UE,Democratic Represent and  Mgnt,1007,Streetscene & Leisure Contracts,Playground Equipment,40008,"Equipment, Furniture & Materia",5023,To carryout repairs to play net,14/03/2014,93908,995.00,Revenue,GB Sport & Leisure,21305
Chorley Borough Council,http://statistics.data.gov.uk/id/local-authority/30UE,Central Support Services,1009,"Customer, ICT & Transactional",Computer Equipment-Purchase,40098,Communication and Computing,5028,iPad Air Wi-Fi Cell 16GB Space Grey MD791B/A,31/03/2014,93914,"25,900.00",Revenue,GBM Digital Technologies Ltd,64085
Chorley Borough Council,http://statistics.data.gov.uk/id/local-authority/30UE,Central Support Services,1009,HR & Org. Development,Service Fees,40056,Services,5027,Provision of CBT Coaching Sessions x 3,12/03/2014,93838,300.00,Revenue,Geoffrey Leigh Limited,52744
Chorley Borough Council,http://statistics.data.gov.uk/id/local-authority/30UE,Service Management & Support,1009,Streetscene & Leisure Contracts,Tools & Equipment - Purchase,40003,"Equipment, Furniture & Materia",5023,Supply Kubota tractor complete with front loader as per your quote via the chest. ,21/03/2014,94037,"38,995.00",Revenue,Gibsons Garden Machinery Ltd,17550
Chorley Borough Council,http://statistics.data.gov.uk/id/local-authority/30UE,Service Management & Support,1009,Streetscene & Leisure Contracts,Tools & Equipment - Purchase,40003,"Equipment, Furniture & Materia",5023,Extended 3 year warranty for Kubota tractor as per your quote. ,21/03/2014,94037,"2,720.00",Revenue,Gibsons Garden Machinery Ltd,17550
Chorley Borough Council,http://statistics.data.gov.uk/id/local-authority/30UE,Economic Development,1096,Economic Development,Miscellaneous Expenses,40200,Miscellaneous Expenses,5034,"4 x 2-pocket A1 landscape cable poster kits - 310 1 x 1-pocket A1 landscape cable poster kits - 48 Delivery 20",26/03/2014,94082,378.00,Revenue,GJ Plastics Ltd,20964
Chorley Borough Council,http://statistics.data.gov.uk/id/local-authority/30UE,Corporate Management,1008,Health Environment & Neighbourhoods,Impounded Dogs Costs,40207,Miscellaneous Expenses,5034,Kennelling fees for 2013/14,26/03/2014,94181,390.00,Revenue,Glencoe Boarding Kennels,16734
Chorley Borough Council,http://statistics.data.gov.uk/id/local-authority/30UE,Corporate Management,1008,Health Environment & Neighbourhoods,Vandalism Repairs,20005,Repairs Maintenance & Alts,5005,12 month contract for the removal of Graffiti in accordance with contract conditions and value added cleaning work as agreed,31/03/2014,93910,"1,246.87",Revenue,Graffiti Removal (North) Ltd,17320
Chorley Borough Council,http://statistics.data.gov.uk/id/local-authority/30UE,Corporate Management,1008,Shared Service Arrangement,External Audit,40064,Services,5027,2013/14 External Audit Fees,31/03/2014,93987,"14,860.00",Revenue,Grant Thornton UK LLP,57322
Chorley Borough Council,http://statistics.data.gov.uk/id/local-authority/30UE,Housing Strategy,1069,Shared Service Arrangement,HM Land Registry Fees,40174,Miscellaneous Expenses,5034,Land Reg,26/03/2014,94118,3.00,Revenue,H M Land Registry,17567
Chorley Borough Council,http://statistics.data.gov.uk/id/local-authority/30UE,Unapportionable Central OHeads,1009,Shared Service Arrangement,HM Land Registry Fees,40174,Miscellaneous Expenses,5034,Land Reg,26/03/2014,94118,22.00,Revenue,H M Land Registry,17567
Chorley Borough Council,http://statistics.data.gov.uk/id/local-authority/30UE,Central Support Services,1009,Shared Service Arrangement,HM Land Registry Fees,40174,Miscellaneous Expenses,5034,Land Reg,26/03/2014,94118,57.00,Revenue,H M Land Registry,17567
Chorley Borough Council,http://statistics.data.gov.uk/id/local-authority/30UE,Local Tax Collection,1010,Shared Service Arrangement,HM Land Registry Fees,40174,Miscellaneous Expenses,5034,Land Reg,26/03/2014,94118,45.00,Revenue,H M Land Registry,17567
Chorley Borough Council,http://statistics.data.gov.uk/id/local-authority/30UE,Development Control,1091,Shared Service Arrangement,HM Land Registry Fees,40174,Miscellaneous Expenses,5034,Land Reg,26/03/2014,94118,255.00,Revenue,H M Land Registry,17567
Chorley Borough Council,http://statistics.data.gov.uk/id/local-authority/30UE,Community Safety Crime Reduct,1043,Shared Service Arrangement,HM Land Registry Fees,40174,Miscellaneous Expenses,5034,Land Reg,26/03/2014,94118,50.00,Revenue,H M Land Registry,17567
Chorley Borough Council,http://statistics.data.gov.uk/id/local-authority/30UE,Housing Benefit Administration,1077,Shared Service Arrangement,HM Land Registry Fees,40174,Miscellaneous Expenses,5034,Land Reg,26/03/2014,94118,3.00,Revenue,H M Land Registry,17567
Chorley Borough Council,http://statistics.data.gov.uk/id/local-authority/30UE,Economic Development,1096,Shared Service Arrangement,Miscellaneous Expenses,40200,Miscellaneous Expenses,5034,Land Reg,26/03/2014,94118,136.00,Revenue,H M Land Registry,17567
Chorley Borough Council,http://statistics.data.gov.uk/id/local-authority/30UE,Unapportionable Central OHeads,1009,"Customer, ICT & Transactional",HM Land Registry Fees,40174,Miscellaneous Expenses,5034,Land Reg,31/03/2014,94286,17.00,Revenue,H M Land Registry,17567
Chorley Borough Council,http://statistics.data.gov.uk/id/local-authority/30UE,Local Tax Collection,1010,"Customer, ICT & Transactional",HM Land Registry Fees,40174,Miscellaneous Expenses,5034,Land Reg,31/03/2014,94286,63.00,Revenue,H M Land Registry,17567
Chorley Borough Council,http://statistics.data.gov.uk/id/local-authority/30UE,Development Control,1091,"Customer, ICT & Transactional",HM Land Registry Fees,40174,Miscellaneous Expenses,5034,Land Reg,31/03/2014,94286,62.00,Revenue,H M Land Registry,17567
Chorley Borough Council,http://statistics.data.gov.uk/id/local-authority/30UE,Community Safety Crime Reduct,1043,"Customer, ICT & Transactional",HM Land Registry Fees,40174,Miscellaneous Expenses,5034,Land Reg,31/03/2014,94286,112.00,Revenue,H M Land Registry,17567
Chorley Borough Council,http://statistics.data.gov.uk/id/local-authority/30UE,Housing Benefit Administration,1077,"Customer, ICT & Transactional",HM Land Registry Fees,40174,Miscellaneous Expenses,5034,Land Reg,31/03/2014,94286,9.00,Revenue,H M Land Registry,17567
Chorley Borough Council,http://statistics.data.gov.uk/id/local-authority/30UE,Economic Development,1096,"Customer, ICT & Transactional",Miscellaneous Expenses,40200,Miscellaneous Expenses,5034,Land Reg,31/03/2014,94286,6.00,Revenue,H M Land Registry,17567
Chorley Borough Council,http://statistics.data.gov.uk/id/local-authority/30UE,Elections,1012,Governance,Computer Software-Maintenance,40107,Communication and Computing,5028,Annual Support and Maintenance for scanning Management,12/03/2014,93892,"1,452.19",Revenue,Halarose Limited,18133
Chorley Borough Council,http://statistics.data.gov.uk/id/local-authority/30UE,Elections,1012,Governance,Computer Software-Maintenance,40107,Communication and Computing,5028,Annual Support & Maintenance for Avantgard,12/03/2014,93892,"6,063.22",Revenue,Halarose Limited,18133
Chorley Borough Council,http://statistics.data.gov.uk/id/local-authority/30UE,Elections,1012,Governance,Printing,40043,"Printing, Stationery & General",5026,"Hera - Annual Canvas 2013 - Internet, SMS and Telephone registrations plus any postal vote requests",12/03/2014,93900,"3,309.58",Revenue,Halarose Limited,18133
Chorley Borough Council,http://statistics.data.gov.uk/id/local-authority/30UE,Service Management & Support,1009,Streetscene & Leisure Contracts,Tools & Equipment - Maintenance,40005,"Equipment, Furniture & Materia",5023,Carryout service and reqpairs to steam wash at Bengal St depot,19/03/2014,94017,307.68,Revenue,Hanson Cleaning Equipment Ltd,17297
Chorley Borough Council,http://statistics.data.gov.uk/id/local-authority/30UE,Other Short Term Debtors,,Shared Service Arrangement,General Balances,100,Balance Sheet,Balance,Payment of output VAT,05/03/2014,93874,"51,932.07",Revenue,HM Customs And Excise,17569
Chorley Borough Council,http://statistics.data.gov.uk/id/local-authority/30UE,Service Management & Support,1009,Streetscene & Leisure Contracts,Vehicle Trackers,30046,Direct Transport Costs,5016,Hire of tracking system for Chorley Council for April and May 2014,31/03/2014,93803,795.80,Revenue,Investec Asset Finance Plc,53879
Chorley Borough Council,http://statistics.data.gov.uk/id/local-authority/30UE,Service Management & Support,1009,Streetscene & Leisure Contracts,Vehicle Trackers,30046,Direct Transport Costs,5016,Hire of tracking system for Chorley Council for April and May 2014,31/03/2014,94137,815.80,Revenue,Investec Asset Finance Plc,53879
Chorley Borough Council,http://statistics.data.gov.uk/id/local-authority/30UE,Democratic Represent and  Mgnt,1007,Streetscene & Leisure Contracts,Signs:Provision & Maintenance,20065,Grounds Maintenance Costs,5013,Aco raindrain plus channel with galv grating 1000mm,12/03/2014,93831,270.00,Revenue,Jewsons Limited,17844
Chorley Borough Council,http://statistics.data.gov.uk/id/local-authority/30UE,Corporate Management,1008,Shared Service Arrangement,Employee Related Insurance,18003,Indirect Employee Expenses,5002,Property and Terrorism Insurance,05/03/2014,93827,"89,448.08",Revenue,JLT Speciality Ltd,52747
Chorley Borough Council,http://statistics.data.gov.uk/id/local-authority/30UE,Development Control,1091,Planning,Statutory Notices,40160,Miscellaneous Expenses,5034,Planning Public Notices to appear in the Chorley Guardian average cost 322.61 per insertion  April 2013 - March 2014,12/03/2014,93668,293.58,Revenue,Johnston Publishing Ltd,20072
Chorley Borough Council,http://statistics.data.gov.uk/id/local-authority/30UE,Development Control,1091,Planning,Statutory Notices,40160,Miscellaneous Expenses,5034,Planning Public Notices to appear in the Chorley Guardian average cost 322.61 per insertion  April 2013 - March 2014,12/03/2014,93746,307.56,Revenue,Johnston Publishing Ltd,20072
Chorley Borough Council,http://statistics.data.gov.uk/id/local-authority/30UE,Development Control,1091,Planning,Statutory Notices,40160,Miscellaneous Expenses,5034,Planning Public Notices to appear in the Chorley Guardian average cost 322.61 per insertion  April 2013 - March 2014,12/03/2014,93829,279.60,Revenue,Johnston Publishing Ltd,20072
Chorley Borough Council,http://statistics.data.gov.uk/id/local-authority/30UE,Development Control,1091,Planning,Statutory Notices,40160,Miscellaneous Expenses,5034,Planning Public Notices to appear in the Chorley Guardian average cost 322.61 per insertion  April 2013 - March 2014,21/03/2014,94021,251.64,Revenue,Johnston Publishing Ltd,20072
Chorley Borough Council,http://statistics.data.gov.uk/id/local-authority/30UE,Development Control,1091,Planning,Statutory Notices,40160,Miscellaneous Expenses,5034,Planning Public Notices to appear in the Chorley Guardian average cost 322.61 per insertion  April 2013 - March 2014,21/03/2014,94083,251.64,Revenue,Johnston Publishing Ltd,20072
Chorley Borough Council,http://statistics.data.gov.uk/id/local-authority/30UE,Central Support Services,1009,HR & Org. Development,Corp Training Organisational Development,17006,Indirect Employee Expenses,5002,Training course - Dealing with Emotional and Challenging Conversations 19th February 2014,21/03/2014,94031,895.00,Revenue,JW Training,64096
Chorley Borough Council,http://statistics.data.gov.uk/id/local-authority/30UE,Capital,Capital,Housing,Grants,3002,Capital Expenditure,Capital,INV 1132 NAME AND ADDRESS REDACTED / DFG,19/03/2014,94058,"3,519.00",Capital,K Berry Ltd,16421
Chorley Borough Council,http://statistics.data.gov.uk/id/local-authority/30UE,Corporate Management,1008,Streetscene & Leisure Contracts,External Contractor,40198,Miscellaneous Expenses,5034,Central heating installation at Greenwood Clayton Green under Affordable Warmth Project 2013-14,31/03/2014,94208,"1,200.00",Revenue,K Berry Ltd,16421
Chorley Borough Council,http://statistics.data.gov.uk/id/local-authority/30UE,Democratic Represent and  Mgnt,1007,Streetscene & Leisure Contracts,Planning Application Fees,40066,Services,5027,"Green Flag Application Award Fee for Astley Park, Chorley 2014",26/03/2014,94138,358.00,Revenue,Keep Britain Tidy,22196
Chorley Borough Council,http://statistics.data.gov.uk/id/local-authority/30UE,Democratic Represent and  Mgnt,1007,Streetscene & Leisure Contracts,Planning Application Fees,40066,Services,5027,Green Flag Application fee for Yarrow Valley Country Park 2014,26/03/2014,94139,358.00,Revenue,Keep Britain Tidy,22196
Chorley Borough Council,http://statistics.data.gov.uk/id/local-authority/30UE,Democratic Represent and  Mgnt,1007,Streetscene & Leisure Contracts,Planning Application Fees,40066,Services,5027,Green Flag Application award fee for Tatton Recreation Ground 2014,26/03/2014,94140,307.00,Revenue,Keep Britain Tidy,22196
Chorley Borough Council,http://statistics.data.gov.uk/id/local-authority/30UE,Democratic Represent and  Mgnt,1007,Streetscene & Leisure Contracts,Planning Application Fees,40066,Services,5027,Green Flag Award Application fee for Withnell Local Nature Reserve 2014,26/03/2014,94141,307.00,Revenue,Keep Britain Tidy,22196
Chorley Borough Council,http://statistics.data.gov.uk/id/local-authority/30UE,Homelessness,1075,Housing,External Contractor,40198,Miscellaneous Expenses,5034,Provision of Housing Drop In and Mediation Services to Young People in Chorley Period 3: 1st November 2013 - 31st ,31/03/2014,93379,"7,500.00",Revenue,Key,61252
Chorley Borough Council,http://statistics.data.gov.uk/id/local-authority/30UE,Homelessness,1075,Housing,External Contractor,40198,Miscellaneous Expenses,5034,Provision of Housing Drop In and Mediation Services to Young People in Chorley. Period 2: 1st September 2013 - 31st ,31/03/2014,93387,"3,750.00",Revenue,Key,61252
Chorley Borough Council,http://statistics.data.gov.uk/id/local-authority/30UE,Control Accounts,Control,Shared Service Arrangement,General Balances,100,Balance Sheet,Balance,Feb deductions,05/03/2014,93704,980.81,Revenue,Labour Councillors Association,17577
Chorley Borough Council,http://statistics.data.gov.uk/id/local-authority/30UE,Control Accounts,Control,Shared Service Arrangement,General Balances,100,Balance Sheet,Balance,Sales Deds,31/03/2014,94283,980.81,Revenue,Labour Councillors Association,17577
Chorley Borough Council,http://statistics.data.gov.uk/id/local-authority/30UE,Central Support Services,1009,Chief Executives Office,Photocopier Consumables,40049,"Printing, Stationery & General",5026,"10,000 Sheets letterheaded paper 100gm",31/03/2014,94151,412.00,Revenue,Lancashire Business Forms Ltd,16665
Chorley Borough Council,http://statistics.data.gov.uk/id/local-authority/30UE,Development Control,1091,Planning,Consultants` Fees,40077,Services,5027,Service Level Agreement for Archaeological and Ecological Advice 2013-2014,31/03/2014,93588,"10,992.00",Revenue,Lancashire County Council,17758
Chorley Borough Council,http://statistics.data.gov.uk/id/local-authority/30UE,Development Control,1091,Planning,Consultants` Fees,40077,Services,5027,Agricultural Planning Consultation Q3 to December 2013 Application: 13/00775/FUL - Land 190M North Of Holland Lodge ,12/03/2014,93623,400.00,Revenue,Lancashire County Council,17758
Chorley Borough Council,http://statistics.data.gov.uk/id/local-authority/30UE,Development Control,1091,Planning,Consultants` Fees,40077,Services,5027,Application: 13/00953/FUL - Hall O`Th Hill Farm Heath Charnock,12/03/2014,93623,400.00,Revenue,Lancashire County Council,17758
Chorley Borough Council,http://statistics.data.gov.uk/id/local-authority/30UE,Service Management & Support,1009,Streetscene & Leisure Contracts,Maintenance Street Furniture,20055,Grounds Maintenance Costs,5013,Lighting and electrical works,12/03/2014,93811,"2,556.00",Revenue,Lancashire County Council,17758
Chorley Borough Council,http://statistics.data.gov.uk/id/local-authority/30UE,Unapportionable Central OHeads,1009,Shared Service Arrangement,Pensions Increase Act Payments,18005,Indirect Employee Expenses,5002,pension recharge,12/03/2014,93957,"18,128.87",Revenue,Lancashire County Council,18386
Chorley Borough Council,http://statistics.data.gov.uk/id/local-authority/30UE,Collection Fund Revenue Accoun,,Shared Service Arrangement,NNDR County Share,2036,Precepts & Collection Fund,Precept,precept,12/03/2014,93959,"234,243.00",Revenue,Lancashire County Council,18386
Chorley Borough Council,http://statistics.data.gov.uk/id/local-authority/30UE,Precepts and Collection Fund,Precepts,Shared Service Arrangement,LCC Precept,2009,Precepts & Collection Fund,Precept,precept,12/03/2014,93962,"3,601,187.00",Revenue,Lancashire County Council,18386
Chorley Borough Council,http://statistics.data.gov.uk/id/local-authority/30UE,Capital,Capital,Housing,Grants,3002,Capital Expenditure,Capital,Recovery of DFG for stairlift,19/03/2014,94049,892.00,Capital,Lancashire County Council,17758
Chorley Borough Council,http://statistics.data.gov.uk/id/local-authority/30UE,Capital,Capital,Housing,Grants,3002,Capital Expenditure,Capital,Recovery of DFG OF STAIRLIFT,19/03/2014,94050,821.70,Capital,Lancashire County Council,17758
Chorley Borough Council,http://statistics.data.gov.uk/id/local-authority/30UE,Capital,Capital,Housing,Grants,3002,Capital Expenditure,Capital,INV 5100176157 ADDRESS REDACTED DFG,26/03/2014,94184,"3,171.00",Capital,Lancashire County Council,17758
Chorley Borough Council,http://statistics.data.gov.uk/id/local-authority/30UE,Community Development,1097,Policy & Performance,Miscellaneous Expenses,40200,Miscellaneous Expenses,5034,Meals on Wheels service up to Friday 7 February 2014,04/03/2014,93563,322.00,Revenue,Lancashire Fayre,62967
Chorley Borough Council,http://statistics.data.gov.uk/id/local-authority/30UE,Community Development,1097,Policy & Performance,Miscellaneous Expenses,40200,Miscellaneous Expenses,5034,Meals to 7 March 2014 for Meals on Wheels project,21/03/2014,94107,346.00,Revenue,Lancashire Fayre,62967
Chorley Borough Council,http://statistics.data.gov.uk/id/local-authority/30UE,Democratic Represent and  Mgnt,1007,Health Environment & Neighbourhoods,Children's Activities,40188,Miscellaneous Expenses,5034,Trampoline and sports sessions in January,05/03/2014,93767,388.20,Revenue,Lancashire TAAG,57169
Chorley Borough Council,http://statistics.data.gov.uk/id/local-authority/30UE,Corporate Management,1008,Streetscene & Leisure Contracts,Clinical Waste Collection,50007,Private Contractors,5042,Disposal of clinical waste form Chorley Households. Yellow bag collection FY 2013 / 2014 March to April Approx. 550 bags ,26/03/2014,94230,"1,368.95",Revenue,Lancashire Teaching Hospitals NHS FT,19003
Chorley Borough Council,http://statistics.data.gov.uk/id/local-authority/30UE,Unapportionable Central OHeads,1009,HR & Org. Development,Service Fees,40056,Services,5027,Occupational Health,31/03/2014,94236,287.90,Revenue,Lancashire Teaching Hospitals NHS FT,19003
Chorley Borough Council,http://statistics.data.gov.uk/id/local-authority/30UE,Waste Collection,1050,Streetscene & Leisure Contracts,Clinical Waste Collection,50007,Private Contractors,5042,Disposal of Clinical Waste,31/03/2014,94237,"1,107.70",Revenue,Lancashire Teaching Hospitals NHS FT,19003
Chorley Borough Council,http://statistics.data.gov.uk/id/local-authority/30UE,Collection Fund Revenue Accoun,,Shared Service Arrangement,NNDR Fire Share,2037,Precepts & Collection Fund,Precept,precept,12/03/2014,93958,"26,027.00",Revenue,Lancs Combined Fire Authority,17768
Chorley Borough Council,http://statistics.data.gov.uk/id/local-authority/30UE,Precepts and Collection Fund,Precepts,Shared Service Arrangement,LCFA Precept,2011,Precepts & Collection Fund,Precept,precept,12/03/2014,93960,"208,454.00",Revenue,Lancs Combined Fire Authority,17768
Chorley Borough Council,http://statistics.data.gov.uk/id/local-authority/30UE,Waste Collection,1050,Streetscene & Leisure Contracts,Addn'L Services Payment,50010,Private Contractors,5042,LARAC Membership Renewal 2014-15,12/03/2014,93846,395.00,Revenue,Larac,16550
Chorley Borough Council,http://statistics.data.gov.uk/id/local-authority/30UE,Parking Services,1066,Streetscene & Leisure Contracts,External Contractors,50008,Private Contractors,5042,enforcement and cash collection for off street car parks.,26/03/2014,94103,"4,601.21",Revenue,Legion Group,21973
Chorley Borough Council,http://statistics.data.gov.uk/id/local-authority/30UE,Central Support Services,1009,Governance,General Subscriptions,40146,Grants and Subscriptions,5031,Online renewal 2014-2015 Chorley Council & South Ribble,19/03/2014,93982,"11,663.00",Revenue,Lexis Nexis UK,16688
Chorley Borough Council,http://statistics.data.gov.uk/id/local-authority/30UE,Central Support Services,1009,Governance,Asset Maintenance Fund,20012,Repairs Maintenance & Alts,5005,jan 14 WIP,12/03/2014,93869,"5,247.37",Revenue,Liberata UK,20716
Chorley Borough Council,http://statistics.data.gov.uk/id/local-authority/30UE,Unapportionable Central OHeads,1009,Governance,Asset Maintenance Fund,20012,Repairs Maintenance & Alts,5005,Pass through works 290114,12/03/2014,93870,"4,701.46",Revenue,Liberata UK,20716
Chorley Borough Council,http://statistics.data.gov.uk/id/local-authority/30UE,Central Support Services,1009,Governance,Asset Maintenance Fund,20012,Repairs Maintenance & Alts,5005,Improvement works 290114,12/03/2014,93871,"1,557.50",Revenue,Liberata UK,20716
Chorley Borough Council,http://statistics.data.gov.uk/id/local-authority/30UE,Central Support Services,1009,Governance,External Contractors,50008,Private Contractors,5042,Core and reactive service charge,12/03/2014,93935,"42,320.42",Revenue,Liberata UK,20716
Chorley Borough Council,http://statistics.data.gov.uk/id/local-authority/30UE,Capital,Capital,Governance,Consultants Fees,3025,Capital Expenditure,Capital,Management fee on capital projects,12/03/2014,93935,"5,209.62",Capital,Liberata UK,20716
Chorley Borough Council,http://statistics.data.gov.uk/id/local-authority/30UE,Control Accounts,Control,Shared Service Arrangement,Manual Control Account,1,Balance Sheet,Balance,CIS deducted in error,31/03/2014,94268,"1,049.47",Revenue,Liberata UK,20716
Chorley Borough Council,http://statistics.data.gov.uk/id/local-authority/30UE,Culture & Heritage,1036,Streetscene & Leisure Contracts,General Repairs,20004,Repairs Maintenance & Alts,5005,CA13851- set of 6 LED battery pillar candles with dripping wax PACKS @ 13.64 CA13853 - Pair LED church pillar candles,21/03/2014,93968,544.83,Revenue,Lights4fun,63898
Chorley Borough Council,http://statistics.data.gov.uk/id/local-authority/30UE,Corporate Management,1008,Shared Service Arrangement,Legal Fees,40171,Miscellaneous Expenses,5034,Recovery of legal cost,31/03/2014,93858,"1,132.38",Revenue,Local Government Association,16243
Chorley Borough Council,http://statistics.data.gov.uk/id/local-authority/30UE,Corporate Management,1008,Shared Service Arrangement,Legal Fees,40171,Miscellaneous Expenses,5034,Recovery of legal cost,31/03/2014,93858,151.88,Revenue,Local Government Association,16243
Chorley Borough Council,http://statistics.data.gov.uk/id/local-authority/30UE,Corporate Management,1008,HR & Org. Development,Agency Staff,13000,Direct Employee Expenses,5001,Agency Staff,12/03/2014,93819,652.32,Revenue,Matrix SCM Ltd,22128
Chorley Borough Council,http://statistics.data.gov.uk/id/local-authority/30UE,Homelessness,1075,HR & Org. Development,Agency Staff,13000,Direct Employee Expenses,5001,Agency Staff,12/03/2014,93819,581.28,Revenue,Matrix SCM Ltd,22128
Chorley Borough Council,http://statistics.data.gov.uk/id/local-authority/30UE,Homelessness,1075,HR & Org. Development,Agency Staff,13000,Direct Employee Expenses,5001,Agency Staff,12/03/2014,93819,455.60,Revenue,Matrix SCM Ltd,22128
Chorley Borough Council,http://statistics.data.gov.uk/id/local-authority/30UE,Homelessness,1075,HR & Org. Development,Agency Staff,13000,Direct Employee Expenses,5001,Agency Staff,12/03/2014,93819,234.11,Revenue,Matrix SCM Ltd,22128
Chorley Borough Council,http://statistics.data.gov.uk/id/local-authority/30UE,Housing Benefit Administration,1077,HR & Org. Development,Agency Staff,13000,Direct Employee Expenses,5001,Agency Staff,12/03/2014,93945,282.89,Revenue,Matrix SCM Ltd,22128
Chorley Borough Council,http://statistics.data.gov.uk/id/local-authority/30UE,Flood Defence & Land Drainage,1046,HR & Org. Development,Agency Staff,13000,Direct Employee Expenses,5001,Agency Staff,12/03/2014,93945,532.29,Revenue,Matrix SCM Ltd,22128
Chorley Borough Council,http://statistics.data.gov.uk/id/local-authority/30UE,Homelessness,1075,HR & Org. Development,Agency Staff,13000,Direct Employee Expenses,5001,Agency Staff,12/03/2014,93945,561.60,Revenue,Matrix SCM Ltd,22128
Chorley Borough Council,http://statistics.data.gov.uk/id/local-authority/30UE,Homelessness,1075,HR & Org. Development,Agency Staff,13000,Direct Employee Expenses,5001,Agency Staff,12/03/2014,93945,468.00,Revenue,Matrix SCM Ltd,22128
Chorley Borough Council,http://statistics.data.gov.uk/id/local-authority/30UE,Homelessness,1075,HR & Org. Development,Agency Staff,13000,Direct Employee Expenses,5001,Agency Staff,12/03/2014,93945,228.40,Revenue,Matrix SCM Ltd,22128
Chorley Borough Council,http://statistics.data.gov.uk/id/local-authority/30UE,Homelessness,1075,HR & Org. Development,Agency Staff,13000,Direct Employee Expenses,5001,Agency Staff,12/03/2014,93945,251.24,Revenue,Matrix SCM Ltd,22128
Chorley Borough Council,http://statistics.data.gov.uk/id/local-authority/30UE,Corporate Management,1008,HR & Org. Development,Agency Staff,13000,Direct Employee Expenses,5001,Agency Staff,19/03/2014,93966,661.07,Revenue,Matrix SCM Ltd,22128
Chorley Borough Council,http://statistics.data.gov.uk/id/local-authority/30UE,Homelessness,1075,HR & Org. Development,Agency Staff,13000,Direct Employee Expenses,5001,Agency Staff,19/03/2014,93966,588.90,Revenue,Matrix SCM Ltd,22128
Chorley Borough Council,http://statistics.data.gov.uk/id/local-authority/30UE,Homelessness,1075,HR & Org. Development,Agency Staff,13000,Direct Employee Expenses,5001,Agency Staff,19/03/2014,93966,468.00,Revenue,Matrix SCM Ltd,22128
Chorley Borough Council,http://statistics.data.gov.uk/id/local-authority/30UE,Homelessness,1075,HR & Org. Development,Agency Staff,13000,Direct Employee Expenses,5001,Agency Staff,19/03/2014,93966,199.85,Revenue,Matrix SCM Ltd,22128
Chorley Borough Council,http://statistics.data.gov.uk/id/local-authority/30UE,Homelessness,1075,HR & Org. Development,Agency Staff,13000,Direct Employee Expenses,5001,Agency Staff,19/03/2014,93966,251.24,Revenue,Matrix SCM Ltd,22128
Chorley Borough Council,http://statistics.data.gov.uk/id/local-authority/30UE,Housing Benefit Administration,1077,HR & Org. Development,Agency Staff,13000,Direct Employee Expenses,5001,Agency Staff,21/03/2014,94097,282.89,Revenue,Matrix SCM Ltd,22128
Chorley Borough Council,http://statistics.data.gov.uk/id/local-authority/30UE,Flood Defence & Land Drainage,1046,HR & Org. Development,Agency Staff,13000,Direct Employee Expenses,5001,Agency Staff,21/03/2014,94097,695.39,Revenue,Matrix SCM Ltd,22128
Chorley Borough Council,http://statistics.data.gov.uk/id/local-authority/30UE,Homelessness,1075,HR & Org. Development,Agency Staff,13000,Direct Employee Expenses,5001,Agency Staff,21/03/2014,94097,565.50,Revenue,Matrix SCM Ltd,22128
Chorley Borough Council,http://statistics.data.gov.uk/id/local-authority/30UE,Homelessness,1075,HR & Org. Development,Agency Staff,13000,Direct Employee Expenses,5001,Agency Staff,21/03/2014,94097,251.24,Revenue,Matrix SCM Ltd,22128
Chorley Borough Council,http://statistics.data.gov.uk/id/local-authority/30UE,Housing Benefit Administration,1077,HR & Org. Development,Agency Staff,13000,Direct Employee Expenses,5001,Agency Staff,31/03/2014,94241,562.30,Revenue,Matrix SCM Ltd,22128
Chorley Borough Council,http://statistics.data.gov.uk/id/local-authority/30UE,Corporate Management,1008,HR & Org. Development,Agency Staff,13000,Direct Employee Expenses,5001,Agency Staff,31/03/2014,94241,665.36,Revenue,Matrix SCM Ltd,22128
Chorley Borough Council,http://statistics.data.gov.uk/id/local-authority/30UE,Homelessness,1075,HR & Org. Development,Agency Staff,13000,Direct Employee Expenses,5001,Agency Staff,31/03/2014,94241,577.20,Revenue,Matrix SCM Ltd,22128
Chorley Borough Council,http://statistics.data.gov.uk/id/local-authority/30UE,Homelessness,1075,HR & Org. Development,Agency Staff,13000,Direct Employee Expenses,5001,Agency Staff,31/03/2014,94241,936.00,Revenue,Matrix SCM Ltd,22128
Chorley Borough Council,http://statistics.data.gov.uk/id/local-authority/30UE,Homelessness,1075,HR & Org. Development,Agency Staff,13000,Direct Employee Expenses,5001,Agency Staff,31/03/2014,94241,114.20,Revenue,Matrix SCM Ltd,22128
Chorley Borough Council,http://statistics.data.gov.uk/id/local-authority/30UE,Homelessness,1075,HR & Org. Development,Agency Staff,13000,Direct Employee Expenses,5001,Agency Staff,31/03/2014,94241,314.05,Revenue,Matrix SCM Ltd,22128
Chorley Borough Council,http://statistics.data.gov.uk/id/local-authority/30UE,Economic Development,1096,Economic Development,Grants To Other Organisations,40127,Grants and Subscriptions,5031,Starting in business grant,12/03/2014,93942,448.80,Revenue,NAME REDACTED,63987
Chorley Borough Council,http://statistics.data.gov.uk/id/local-authority/30UE,Elections,1012,Governance,Rent/Hire Of Premises,20017,Premises Rents,5007,Hire of Room for Polling Station on Thursday 22 May 2014,31/03/2014,94152,336.00,Revenue,Mawdesley Village Hall,18423
Chorley Borough Council,http://statistics.data.gov.uk/id/local-authority/30UE,Unapportionable Central OHeads,1009,Policy & Performance,Publicity - Advertising,40157,Miscellaneous Expenses,5034,Outdoor advertising for the inward investment campaign,12/03/2014,93855,"7,976.00",Revenue,Media Agency Group Ltd,63993
Chorley Borough Council,http://statistics.data.gov.uk/id/local-authority/30UE,Community Safety CCTV,1044,"Customer, ICT & Transactional",Tools & Equipment - Purchase,40003,"Equipment, Furniture & Materia",5023,"Microboards QuicDisc DVD, 3 x DVDRW (22x) (WW151656)",19/03/2014,93876,250.00,Revenue,MISCO,19161
Chorley Borough Council,http://statistics.data.gov.uk/id/local-authority/30UE,Corporate Management,1008,"Customer, ICT & Transactional",Tools & Equipment - Purchase,40003,"Equipment, Furniture & Materia",5023,Delivery,19/03/2014,93876,12.07,Revenue,MISCO,19161
Chorley Borough Council,http://statistics.data.gov.uk/id/local-authority/30UE,Unapportionable Central OHeads,1009,"Customer, ICT & Transactional",Computer Equipment-Purchase,40098,Communication and Computing,5028,Samsung UE46F6800SBXXU 46`` LED 3D TV (part number WW208400),31/03/2014,94271,656.55,Revenue,MISCO,19161
Chorley Borough Council,http://statistics.data.gov.uk/id/local-authority/30UE,Central Support Services,1009,"Customer, ICT & Transactional",Computer Equipment-Purchase,40098,Communication and Computing,5028,Samsung UE55F6800SBXXU 55`` LED 3D TV (part number WW208406),31/03/2014,94271,957.58,Revenue,MISCO,19161
Chorley Borough Council,http://statistics.data.gov.uk/id/local-authority/30UE,Unapportionable Central OHeads,1009,"Customer, ICT & Transactional",Consultants` Fees,40077,Services,5027,"Application software � modern.gov. Move existing modern.gov public site to a new web server via remote access.",31/03/2014,94168,400.00,Revenue,Modern Mindset LTD,51367
Chorley Borough Council,http://statistics.data.gov.uk/id/local-authority/30UE,Central Support Services,1009,"Customer, ICT & Transactional",Consultants` Fees,40077,Services,5027,Application software � modern.gov. Rebrand Intranet website,31/03/2014,94168,400.00,Revenue,Modern Mindset LTD,51367
Chorley Borough Council,http://statistics.data.gov.uk/id/local-authority/30UE,Democratic Represent and  Mgnt,1007,Streetscene & Leisure Contracts,Conservation Of Exhibits,40059,Services,5027,Astley Hall Technical services to take down all paintings in the Great Hall to facilitate cleaning.Including new chains ,21/03/2014,94069,"1,114.26",Revenue,Mr John Critchley,54930
Chorley Borough Council,http://statistics.data.gov.uk/id/local-authority/30UE,Service Management & Support,1009,Streetscene & Leisure Contracts,Tools & Equipment - Maintenance,40005,"Equipment, Furniture & Materia",5023,Cylinders,12/03/2014,93610,640.00,Revenue,MW Grass Machinery,21616
Chorley Borough Council,http://statistics.data.gov.uk/id/local-authority/30UE,Community Safety Crime Reduct,1043,Health Environment & Neighbourhoods,Miscellaneous Expenses,40200,Miscellaneous Expenses,5034,Vacinations,12/03/2014,93430,315.82,Revenue,Myerscough Veterinary Group,56978
Chorley Borough Council,http://statistics.data.gov.uk/id/local-authority/30UE,Service Management & Support,1009,Streetscene & Leisure Contracts,Refuse Collection,20037,Cleaning and Domestic Supplies,5012,Exchange of Street Cleaning skip from Chorley Council Bengal St depot at price quoted,26/03/2014,93658,"1,150.00",Revenue,Neales Waste Management,17583
Chorley Borough Council,http://statistics.data.gov.uk/id/local-authority/30UE,Service Management & Support,1009,Streetscene & Leisure Contracts,Refuse Collection,20037,Cleaning and Domestic Supplies,5012,Exchange of green waste skip from Bengal St depot at price quoted2,26/03/2014,93658,285.46,Revenue,Neales Waste Management,17583
Chorley Borough Council,http://statistics.data.gov.uk/id/local-authority/30UE,Service Management & Support,1009,Streetscene & Leisure Contracts,Refuse Collection,20037,Cleaning and Domestic Supplies,5012,Charge for tonnage of green waste removed from Bengal St depot at price quoted,26/03/2014,93658,410.70,Revenue,Neales Waste Management,17583
Chorley Borough Council,http://statistics.data.gov.uk/id/local-authority/30UE,Homelessness,1075,Housing,Grants To Other Organisations,40127,Grants and Subscriptions,5031,Delivery of shared service pilot Dec 13 -Feb 14,31/03/2014,94264,"3,646.75",Revenue,New Progress Housing Association Ltd,17922
Chorley Borough Council,http://statistics.data.gov.uk/id/local-authority/30UE,Economic Development,1096,Streetscene & Leisure Contracts,Consultants` Fees,40077,Services,5027,consultation exercise for shop front improvements to Market Street Consultation with all shop owners  marketing distribution,31/03/2014,94133,"2,376.13",Revenue,Newground CIC,22064
Chorley Borough Council,http://statistics.data.gov.uk/id/local-authority/30UE,Economic Development,1096,Streetscene & Leisure Contracts,Consultants` Fees,40077,Services,5027,Visual dilapidation survey / hazards,31/03/2014,94133,560.10,Revenue,Newground CIC,22064
Chorley Borough Council,http://statistics.data.gov.uk/id/local-authority/30UE,Economic Development,1096,Streetscene & Leisure Contracts,Consultants` Fees,40077,Services,5027,Photoshop facades / produce leaflets / printing costs / agree with client,31/03/2014,94133,759.98,Revenue,Newground CIC,22064
Chorley Borough Council,http://statistics.data.gov.uk/id/local-authority/30UE,Local Tax Collection,1010,"Customer, ICT & Transactional",Publications,40054,"Printing, Stationery & General",5026,Council Tax Publication notice 2014/2015,26/03/2014,93995,581.00,Revenue,Newsquest (Lancashire) Limited,18117
Chorley Borough Council,http://statistics.data.gov.uk/id/local-authority/30UE,Service Management & Support,1009,Streetscene & Leisure Contracts,Hire Of Transport,30028,Contrct Hire & Operating Lease,5018,Hire of Ford Transit tipper Reg NJ10OTK at price quoted from 01/04/2013  - 31/03/2014,12/03/2014,93500,407.43,Revenue,Northgate Vehicle Hire (NW) Ltd,17360
Chorley Borough Council,http://statistics.data.gov.uk/id/local-authority/30UE,Service Management & Support,1009,Streetscene & Leisure Contracts,Hire Of Transport,30028,Contrct Hire & Operating Lease,5018,Hire of Ford Transit tipper NJ10OVN at price quoted from 01/04/2013 - 31/03/2014,12/03/2014,93500,407.43,Revenue,Northgate Vehicle Hire (NW) Ltd,17360
Chorley Borough Council,http://statistics.data.gov.uk/id/local-authority/30UE,Service Management & Support,1009,Streetscene & Leisure Contracts,Hire Of Transport,30028,Contrct Hire & Operating Lease,5018,Hire of Ford Transit tipper Reg NJ10OXG at price quoted from 01/03/2013  - 31/04/2014,12/03/2014,93500,407.43,Revenue,Northgate Vehicle Hire (NW) Ltd,17360
Chorley Borough Council,http://statistics.data.gov.uk/id/local-authority/30UE,Service Management & Support,1009,Streetscene & Leisure Contracts,Hire Of Transport,30028,Contrct Hire & Operating Lease,5018,Hire of Ford Transit tipper Reg NJ60 KFK at price quoted,12/03/2014,93500,413.81,Revenue,Northgate Vehicle Hire (NW) Ltd,17360
Chorley Borough Council,http://statistics.data.gov.uk/id/local-authority/30UE,Service Management & Support,1009,Streetscene & Leisure Contracts,Hire Of Transport,30028,Contrct Hire & Operating Lease,5018,Hire of Ford Transit Crewcab tipper Reg NL12 OFG at price quoted,12/03/2014,93500,522.57,Revenue,Northgate Vehicle Hire (NW) Ltd,17360
Chorley Borough Council,http://statistics.data.gov.uk/id/local-authority/30UE,Service Management & Support,1009,Streetscene & Leisure Contracts,Hire Of Transport,30028,Contrct Hire & Operating Lease,5018,Hire of Ford Transit tipper Reg No NL12ONR at price quoted,12/03/2014,93500,522.57,Revenue,Northgate Vehicle Hire (NW) Ltd,17360
Chorley Borough Council,http://statistics.data.gov.uk/id/local-authority/30UE,Community Safety Crime Reduct,1043,Streetscene & Leisure Contracts,Hire Of Transport,30028,Contrct Hire & Operating Lease,5018,Hire ot Peugeot Panter van Reg NV60 BVF at price quoted,12/03/2014,93500,241.40,Revenue,Northgate Vehicle Hire (NW) Ltd,17360
Chorley Borough Council,http://statistics.data.gov.uk/id/local-authority/30UE,Corporate Management,1008,Streetscene & Leisure Contracts,Hire Of Transport,30028,Contrct Hire & Operating Lease,5018,Hire of PeugeotPartner van Reg NX62 UCS at price quoted,12/03/2014,93500,241.40,Revenue,Northgate Vehicle Hire (NW) Ltd,17360
Chorley Borough Council,http://statistics.data.gov.uk/id/local-authority/30UE,Democratic Represent and  Mgnt,1007,Streetscene & Leisure Contracts,Hire Of Transport,30028,Contrct Hire & Operating Lease,5018,Hire of Ford Transit crew cab Reg NK13YPT at price quoted,12/03/2014,93500,509.29,Revenue,Northgate Vehicle Hire (NW) Ltd,17360
Chorley Borough Council,http://statistics.data.gov.uk/id/local-authority/30UE,Service Management & Support,1009,Streetscene & Leisure Contracts,Hire Of Transport,30028,Contrct Hire & Operating Lease,5018,ND12 ORO,12/03/2014,93500,86.76,Revenue,Northgate Vehicle Hire (NW) Ltd,17360
Chorley Borough Council,http://statistics.data.gov.uk/id/local-authority/30UE,Service Management & Support,1009,Streetscene & Leisure Contracts,Hire Of Transport,30028,Contrct Hire & Operating Lease,5018,Hire of Ford Transit tipper Reg NJ10OTK at price quoted from 01/04/2013  - 31/03/2014,26/03/2014,94074,368.00,Revenue,Northgate Vehicle Hire (NW) Ltd,17360
Chorley Borough Council,http://statistics.data.gov.uk/id/local-authority/30UE,Service Management & Support,1009,Streetscene & Leisure Contracts,Hire Of Transport,30028,Contrct Hire & Operating Lease,5018,Hire of Ford Transit tipper NJ10OVN at price quoted from 01/04/2013 - 31/03/2014,26/03/2014,94074,368.00,Revenue,Northgate Vehicle Hire (NW) Ltd,17360
Chorley Borough Council,http://statistics.data.gov.uk/id/local-authority/30UE,Service Management & Support,1009,Streetscene & Leisure Contracts,Hire Of Transport,30028,Contrct Hire & Operating Lease,5018,Hire of Ford Transit tipper Reg NJ10OXG at price quoted from 01/03/2013  - 31/04/2014,26/03/2014,94074,368.00,Revenue,Northgate Vehicle Hire (NW) Ltd,17360
Chorley Borough Council,http://statistics.data.gov.uk/id/local-authority/30UE,Service Management & Support,1009,Streetscene & Leisure Contracts,Hire Of Transport,30028,Contrct Hire & Operating Lease,5018,Hire of Ford Transit tipper Reg NJ60 KFK at price quoted,26/03/2014,94074,373.76,Revenue,Northgate Vehicle Hire (NW) Ltd,17360
Chorley Borough Council,http://statistics.data.gov.uk/id/local-authority/30UE,Service Management & Support,1009,Streetscene & Leisure Contracts,Hire Of Transport,30028,Contrct Hire & Operating Lease,5018,Hire of Ford Transit Crewcab tipper Reg NL12 OFG at price quoted,26/03/2014,94074,555.40,Revenue,Northgate Vehicle Hire (NW) Ltd,17360
Chorley Borough Council,http://statistics.data.gov.uk/id/local-authority/30UE,Service Management & Support,1009,Streetscene & Leisure Contracts,Hire Of Transport,30028,Contrct Hire & Operating Lease,5018,Hire of Ford Transit tipper Reg No NL12ONR at price quoted,26/03/2014,94074,472.00,Revenue,Northgate Vehicle Hire (NW) Ltd,17360
Chorley Borough Council,http://statistics.data.gov.uk/id/local-authority/30UE,Community Safety Crime Reduct,1043,Streetscene & Leisure Contracts,Hire Of Transport,30028,Contrct Hire & Operating Lease,5018,Hire ot Peugeot Panter van Reg NV60 BVF at price quoted,26/03/2014,94074,218.04,Revenue,Northgate Vehicle Hire (NW) Ltd,17360
Chorley Borough Council,http://statistics.data.gov.uk/id/local-authority/30UE,Corporate Management,1008,Streetscene & Leisure Contracts,Hire Of Transport,30028,Contrct Hire & Operating Lease,5018,Hire of PeugeotPartner van Reg NX62 UCS at price quoted,26/03/2014,94074,218.04,Revenue,Northgate Vehicle Hire (NW) Ltd,17360
Chorley Borough Council,http://statistics.data.gov.uk/id/local-authority/30UE,Democratic Represent and  Mgnt,1007,Streetscene & Leisure Contracts,Hire Of Transport,30028,Contrct Hire & Operating Lease,5018,Hire of Ford Transit crew cab Reg NK13YPT at price quoted,26/03/2014,94074,460.00,Revenue,Northgate Vehicle Hire (NW) Ltd,17360
Chorley Borough Council,http://statistics.data.gov.uk/id/local-authority/30UE,Service Management & Support,1009,Streetscene & Leisure Contracts,Hire Of Transport,30028,Contrct Hire & Operating Lease,5018,NL62TFS - Panel van v03,26/03/2014,94074,74.53,Revenue,Northgate Vehicle Hire (NW) Ltd,17360
Chorley Borough Council,http://statistics.data.gov.uk/id/local-authority/30UE,Service Management & Support,1009,Streetscene & Leisure Contracts,Supplies - Workshop,40246,"Equipment, Furniture & Materia",5023,Supply items as on invoice number 146350 already supplied,26/03/2014,94167,669.95,Revenue,Nuts Engineering Supplies Ltd,16632
Chorley Borough Council,http://statistics.data.gov.uk/id/local-authority/30UE,Service Management & Support,1009,Streetscene & Leisure Contracts,Supplies - Workshop,40246,"Equipment, Furniture & Materia",5023,Supply items as on invoice number 147272 already supplied,26/03/2014,94169,340.00,Revenue,Nuts Engineering Supplies Ltd,16632
Chorley Borough Council,http://statistics.data.gov.uk/id/local-authority/30UE,Corporate Management,1008,Health Environment & Neighbourhoods,Miscellaneous Expenses,40200,Miscellaneous Expenses,5034,"Mayfield Road, Briercliffe Road- (3 Alleygates) �	75 Keys � (5 each)= 375  �	6 Barrels � (42.50 each)= 255",19/03/2014,94072,"1,918.70",Revenue,Olympic Lock & Safeguards Ltd,17739
Chorley Borough Council,http://statistics.data.gov.uk/id/local-authority/30UE,Unapportionable Central OHeads,1009,"Customer, ICT & Transactional",Mobile Phones,40086,Communication and Computing,5028,Monthly charges,31/03/2014,94276,"1,178.59",Revenue,Orange,16486
Chorley Borough Council,http://statistics.data.gov.uk/id/local-authority/30UE,Central Support Services,1009,"Customer, ICT & Transactional",Mobile Phones,40086,Communication and Computing,5028,Monthly charges,31/03/2014,94276,3.55,Revenue,Orange,16486
Chorley Borough Council,http://statistics.data.gov.uk/id/local-authority/30UE,Economic Development,1096,Economic Development,Grants To Other Organisations,40127,Grants and Subscriptions,5031,"Costs and mileage for Keynote Speaker for the Choose Chorley Network event, 6th March 2014. costs inc VAT 1,113.48",31/03/2014,94212,927.90,Revenue,Out of Bounds Media,64343
Chorley Borough Council,http://statistics.data.gov.uk/id/local-authority/30UE,Capital,Capital,Governance,Main Contractor,3007,Capital Expenditure,Capital,"Certificate 3 - former McDonalds site, Part demolition and refurbishment",12/03/2014,93944,"78,604.05",Capital,P J Services (Bolton) Ltd,62962
Chorley Borough Council,http://statistics.data.gov.uk/id/local-authority/30UE,Capital,Capital,Governance,Main Contractor,3007,Capital Expenditure,Capital,"Certificate No.4 - former McDonalds site, Market Street, Chorley",14/03/2014,93965,"84,687.27",Capital,P J Services (Bolton) Ltd,62962
Chorley Borough Council,http://statistics.data.gov.uk/id/local-authority/30UE,Central Support Services,1009,"Customer, ICT & Transactional",ICT Software Implementation,40114,Communication and Computing,5028,Attain Software - Second Payment Due 1 April 2014 For 12 month period to 31 March 2013,26/03/2014,94030,"2,556.00",Revenue,Parker Sandford Ltd,61771
Chorley Borough Council,http://statistics.data.gov.uk/id/local-authority/30UE,Democratic Represent and  Mgnt,1007,Streetscene & Leisure Contracts,Conservation Of Exhibits,40059,Services,5027,Conservation work on the Shuffle Board table and various items of furniture over the course of two days at Astley Hall. ,12/03/2014,93893,862.10,Revenue,Peter Hall and Son Limited,62741
Chorley Borough Council,http://statistics.data.gov.uk/id/local-authority/30UE,Culture & Heritage,1036,Streetscene & Leisure Contracts,Conservation Of Exhibits,40059,Services,5027,shovel board table,14/03/2014,93894,603.47,Revenue,Peter Hall and Son Limited,62741
Chorley Borough Council,http://statistics.data.gov.uk/id/local-authority/30UE,Corporate Management,1008,Health Environment & Neighbourhoods,External Contractor,40198,Miscellaneous Expenses,5034,50 weeks @ 330.00 for 2013/14,05/03/2014,93853,311.75,Revenue,Peter L Johnson,16727
Chorley Borough Council,http://statistics.data.gov.uk/id/local-authority/30UE,Community Safety Crime Reduct,1043,Health Environment & Neighbourhoods,External Contractor,40198,Miscellaneous Expenses,5034,50 weeks @ 330.00 for 2013/14,12/03/2014,93890,311.75,Revenue,Peter L Johnson,16727
Chorley Borough Council,http://statistics.data.gov.uk/id/local-authority/30UE,Community Safety Crime Reduct,1043,Health Environment & Neighbourhoods,External Contractor,40198,Miscellaneous Expenses,5034,50 weeks @ 330.00 for 2013/14,19/03/2014,94026,311.75,Revenue,Peter L Johnson,16727
Chorley Borough Council,http://statistics.data.gov.uk/id/local-authority/30UE,Culture & Heritage,1036,Streetscene & Leisure Contracts,General Repairs,20004,Repairs Maintenance & Alts,5005,"Restoration/repair of the stags head, Astley Hall. (Accession number CHOAH 1922:8)",21/03/2014,94102,550.00,Revenue,Philip Leggett,63887
Chorley Borough Council,http://statistics.data.gov.uk/id/local-authority/30UE,Central Support Services,1009,"Customer, ICT & Transactional",Computer Software-Maintenance,40107,Communication and Computing,5028,Red Hat Enterprise Linux Server Standard Subscription Licence Download 1 Year 1st April 2014 to 31st March 2015,31/03/2014,94277,572.76,Revenue,Phoenix Software Ltd,17046
Chorley Borough Council,http://statistics.data.gov.uk/id/local-authority/30UE,Precepts and Collection Fund,Precepts,Shared Service Arrangement,LPA Precept,2010,Precepts & Collection Fund,Precept,precept,12/03/2014,93961,"506,815.00",Revenue,Police & Crime Commissioner,17438
Chorley Borough Council,http://statistics.data.gov.uk/id/local-authority/30UE,Corporate Management,1008,Health Environment & Neighbourhoods,Other Contributions,40145,Grants and Subscriptions,5031,"Provision of 27 PCSO`s in Chorley Borugh Area April 2013 to March 2014 - part funded 11,000 per PCSO.",21/03/2014,94095,"99,000.00",Revenue,Police & Crime Commissioner,17548
Chorley Borough Council,http://statistics.data.gov.uk/id/local-authority/30UE,Corporate Management,1008,Streetscene & Leisure Contracts,General Repairs,20004,Repairs Maintenance & Alts,5005,Signs for Chorley/Adlington Cemetery,19/03/2014,93898,"5,416.93",Revenue,Poppy Signs Ltd,21898
Chorley Borough Council,http://statistics.data.gov.uk/id/local-authority/30UE,Cemetery Cremation & Mortuary,1041,Streetscene & Leisure Contracts,General Repairs,20004,Repairs Maintenance & Alts,5005,Signs for Chorley/Adlington Cemetery,31/03/2014,93901,"4,632.95",Revenue,Poppy Signs Ltd,21898
Chorley Borough Council,http://statistics.data.gov.uk/id/local-authority/30UE,Democratic Represent and  Mgnt,1007,Streetscene & Leisure Contracts,Signs:Provision & Maintenance,20065,Grounds Maintenance Costs,5013,"Welcome signs for Tatton Recreation Ground.  Batch of 4 signs, 594mm x 420mm, Full colour digital print with extra heavy ",31/03/2014,94119,521.98,Revenue,Poppy Signs Ltd,21898
Chorley Borough Council,http://statistics.data.gov.uk/id/local-authority/30UE,Economic Development,1096,Economic Development,Fixtures & Fittings - Purchase,20027,Fixtures and Fittings,5010,"4 x market cabin stalls  Cost 2,670 inclusive of VAT",12/03/2014,93889,"2,225.00",Revenue,Portend Ltd.,64089
Chorley Borough Council,http://statistics.data.gov.uk/id/local-authority/30UE,Central Support Services,1009,HR & Org. Development,HR Approved Training Expenses,17001,Indirect Employee Expenses,5002,Dealing with Change - 13/02/14,31/03/2014,93907,495.00,Revenue,Potential Unearthed,22243
Chorley Borough Council,http://statistics.data.gov.uk/id/local-authority/30UE,Central Support Services,1009,Governance,Refreshments,40036,Catering,5024,Bottles - February,19/03/2014,94044,306.00,Revenue,Pressure Coolers Ltd T/A Maestro International Ltd,19767
Chorley Borough Council,http://statistics.data.gov.uk/id/local-authority/30UE,Homelessness,1075,Housing,External Contractor,40198,Miscellaneous Expenses,5034,"Concierge service at Cotswold Supported Housing, Cotswold Road, Chorley, Lancashire. PR7 3HW. ",26/03/2014,93558,"4,396.19",Revenue,Profile Security Ltd,58000
Chorley Borough Council,http://statistics.data.gov.uk/id/local-authority/30UE,Homelessness,1075,Housing,External Contractor,40198,Miscellaneous Expenses,5034,"Concierge service at Cotswold Supported Housing, Cotswold Road, Chorley, Lancashire. PR7 3HW. ",26/03/2014,94005,"4,109.13",Revenue,Profile Security Ltd,58000
Chorley Borough Council,http://statistics.data.gov.uk/id/local-authority/30UE,Planning Policy,1092,Planning,Professional Fees,40063,Services,5027,Programme Officer period 1 October 2013 - 20 February 2014  40 hours @ 20 per hour,12/03/2014,93764,800.00,Revenue,Programme Officer Services Ltd,57093
Chorley Borough Council,http://statistics.data.gov.uk/id/local-authority/30UE,Interest Payable on Debt,1020,Shared Service Arrangement,Interest Payable,9009,Interest Payments,5067,PWLB,12/03/2014,93954,"20,239.27",Revenue,Public Works Loans Board,21480
Chorley Borough Council,http://statistics.data.gov.uk/id/local-authority/30UE,Corporate Management,1008,Health Environment & Neighbourhoods,Miscellaneous Expenses,40200,Miscellaneous Expenses,5034,"Alleygates Rear of Mayfield Road, Briercliffe Road Rear of Eaves Lane, alley between Kershaw St and Stump Lane",21/03/2014,94099,"13,329.00",Revenue,Rotaciser Ltd,21730
Chorley Borough Council,http://statistics.data.gov.uk/id/local-authority/30UE,Development Control,1091,Planning,Training Course Fees,17010,Indirect Employee Expenses,5002,RTPI North West 2014 Programme 1 x Season Ticket B - 10 places ,12/03/2014,93808,800.00,Revenue,RTPI North West,16769
Chorley Borough Council,http://statistics.data.gov.uk/id/local-authority/30UE,Planning Policy,1092,Planning,Training Course Fees,17010,Indirect Employee Expenses,5002,1 x Season Ticket C - 5 places,12/03/2014,93808,425.00,Revenue,RTPI North West,16769
Chorley Borough Council,http://statistics.data.gov.uk/id/local-authority/30UE,Economic Development,1096,Economic Development,Grants To Other Organisations,40127,Grants and Subscriptions,5031,Starting in business grant(2nd payment),12/03/2014,93941,280.64,Revenue,NAME REDACTED,63629
Chorley Borough Council,http://statistics.data.gov.uk/id/local-authority/30UE,Service Management & Support,1009,Streetscene & Leisure Contracts,Protective Clothing,40040,"Clothing, Uniforms and Laundry",5025,Chainsaw helmets - as discussed ,31/03/2014,94260,368.00,Revenue,Seddons (Plant and Engineers) ltd,47834
Chorley Borough Council,http://statistics.data.gov.uk/id/local-authority/30UE,Unapportionable Central OHeads,1009,"Customer, ICT & Transactional",Consultants` Fees,40077,Services,5027,ICT consultancy work - February (20 working days) To be paid on a daily basis December 13 to February 14 at 24 per hour,19/03/2014,93922,"3,770.40",Revenue,Simon Daniel Booth,57624
Chorley Borough Council,http://statistics.data.gov.uk/id/local-authority/30UE,Economic Development,1096,Economic Development,Protective Clothing,40040,"Clothing, Uniforms and Laundry",5025,"Please provide x 10 pairs of DELTA CADEROUSSE SAFETY BOOTs in the following sizes: 1 x size 125 x size 10",12/03/2014,93877,380.00,Revenue,Smart Image Workwear,21064
Chorley Borough Council,http://statistics.data.gov.uk/id/local-authority/30UE,Service Management & Support,1009,Streetscene & Leisure Contracts,Protective Clothing,40040,"Clothing, Uniforms and Laundry",5025,Size 6 - Caderousse boots - as discussed ,26/03/2014,94142,114.00,Revenue,Smart Image Workwear,21064
Chorley Borough Council,http://statistics.data.gov.uk/id/local-authority/30UE,Service Management & Support,1009,Streetscene & Leisure Contracts,Protective Clothing,40040,"Clothing, Uniforms and Laundry",5025,Size 7 - Caderousse boots - as discussed ,26/03/2014,94142,114.00,Revenue,Smart Image Workwear,21064
Chorley Borough Council,http://statistics.data.gov.uk/id/local-authority/30UE,Service Management & Support,1009,Streetscene & Leisure Contracts,Protective Clothing,40040,"Clothing, Uniforms and Laundry",5025,Size 8 - Caderousse boots - as discussed ,26/03/2014,94142,228.00,Revenue,Smart Image Workwear,21064
Chorley Borough Council,http://statistics.data.gov.uk/id/local-authority/30UE,Service Management & Support,1009,Streetscene & Leisure Contracts,Protective Clothing,40040,"Clothing, Uniforms and Laundry",5025,Size 9 - Caderousse boots - as discussed ,26/03/2014,94142,228.00,Revenue,Smart Image Workwear,21064
Chorley Borough Council,http://statistics.data.gov.uk/id/local-authority/30UE,Service Management & Support,1009,Streetscene & Leisure Contracts,Protective Clothing,40040,"Clothing, Uniforms and Laundry",5025,Size 10 - Caderousse boots - as discussed ,26/03/2014,94142,228.00,Revenue,Smart Image Workwear,21064
Chorley Borough Council,http://statistics.data.gov.uk/id/local-authority/30UE,Service Management & Support,1009,Streetscene & Leisure Contracts,Protective Clothing,40040,"Clothing, Uniforms and Laundry",5025,Size11 - Caderousse boots - as discussed ,26/03/2014,94142,76.00,Revenue,Smart Image Workwear,21064
Chorley Borough Council,http://statistics.data.gov.uk/id/local-authority/30UE,Service Management & Support,1009,Streetscene & Leisure Contracts,Protective Clothing,40040,"Clothing, Uniforms and Laundry",5025,Product No.- F110 - Chukka Boots - size 8,26/03/2014,94142,26.85,Revenue,Smart Image Workwear,21064
Chorley Borough Council,http://statistics.data.gov.uk/id/local-authority/30UE,Service Management & Support,1009,Streetscene & Leisure Contracts,Protective Clothing,40040,"Clothing, Uniforms and Laundry",5025,Product No. - F110 - Chukka Boots - size 9,26/03/2014,94142,26.85,Revenue,Smart Image Workwear,21064
Chorley Borough Council,http://statistics.data.gov.uk/id/local-authority/30UE,Service Management & Support,1009,Streetscene & Leisure Contracts,Protective Clothing,40040,"Clothing, Uniforms and Laundry",5025,"Pulsarail Interactive Liner Grey - Size XL - already received 1, require another",26/03/2014,94142,80.50,Revenue,Smart Image Workwear,21064
Chorley Borough Council,http://statistics.data.gov.uk/id/local-authority/30UE,Service Management & Support,1009,Streetscene & Leisure Contracts,Protective Clothing,40040,"Clothing, Uniforms and Laundry",5025,Pulsarail HV Coverall WP Brtable org - Size XL - already received,26/03/2014,94142,64.35,Revenue,Smart Image Workwear,21064
Chorley Borough Council,http://statistics.data.gov.uk/id/local-authority/30UE,Corporate Management,1008,Shared Service Arrangement,Other Fees,40212,Miscellaneous Expenses,5034,Insurance Broker Fees April 2013 - March 2014,21/03/2014,93718,"2,500.00",Revenue,South Ribble Borough Council,17889
Chorley Borough Council,http://statistics.data.gov.uk/id/local-authority/30UE,Central Support Services,1009,Shared Service Arrangement,Service Fees,40056,Services,5027,Subscription to LG Futures 2013/14,21/03/2014,93719,"2,245.00",Revenue,South Ribble Borough Council,17889
Chorley Borough Council,http://statistics.data.gov.uk/id/local-authority/30UE,Development Control,1091,Shared Service Arrangement,Refunds,40220,Miscellaneous Expenses,5034,Payment of two planning applications erroneously receipted by Chorley. 97.00 for PP-03211157 and 172.00 PP-03238879,14/03/2014,93964,269.00,Revenue,South Ribble Borough Council,17889
Chorley Borough Council,http://statistics.data.gov.uk/id/local-authority/30UE,Central Support Services,1009,Shared Service Arrangement,Service Fees to other Local Authorities,40076,Services,5027,Shared Assurance Services April 2013 - March 2014,21/03/2014,94033,"126,781.54",Revenue,South Ribble Borough Council,17889
Chorley Borough Council,http://statistics.data.gov.uk/id/local-authority/30UE,Unapportionable Central OHeads,1009,Shared Service Arrangement,Service Fees to other Local Authorities,40076,Services,5027,Shared Assurance Costs 12/13,21/03/2014,94033,"5,000.00",Revenue,South Ribble Borough Council,17889
Chorley Borough Council,http://statistics.data.gov.uk/id/local-authority/30UE,Capital,Capital,Streetscene & Leisure Contracts,Equipment,3014,Capital Expenditure,Capital,"Wheeled Bin inner caddy 40 litre Black Repro BluInsert 450.00 @ 4.55 PRINTKBX CLEA01024P - existing - white- one long",05/03/2014,93672,"2,047.50",Capital,Straight Plc,17633
Chorley Borough Council,http://statistics.data.gov.uk/id/local-authority/30UE,Service Management & Support,1009,Streetscene & Leisure Contracts,Grounds Maintenance Contractor,20043,Grounds Maintenance Costs,5013,"Stumpgrinding - Union St, Glamis Drive",19/03/2014,94054,400.00,Revenue,Stumpbusters North Lancs,22600
Chorley Borough Council,http://statistics.data.gov.uk/id/local-authority/30UE,Housing Benefit Administration,1077,"Customer, ICT & Transactional",General Subscriptions,40146,Grants and Subscriptions,5031,NAFN Subscription 2014/15 for Chorley Council,26/03/2014,94128,"1,468.00",Revenue,Tameside MBC,19554
Chorley Borough Council,http://statistics.data.gov.uk/id/local-authority/30UE,Unapportionable Central OHeads,1009,Shared Service Arrangement,Pensions Increase Act Payments,18005,Indirect Employee Expenses,5002,Rechargeable pension cost second half 2013/14,05/03/2014,93380,"2,523.11",Revenue,Tameside MBC-Gmpf,17034
Chorley Borough Council,http://statistics.data.gov.uk/id/local-authority/30UE,Economic Development,1096,Economic Development,Grants To Other Organisations,40127,Grants and Subscriptions,5031,Buffet for 80 at Choose Chorley Business Network Thursday 6th March 2014.,19/03/2014,93985,500.00,Revenue,The deli at Crusty`s,17694
Chorley Borough Council,http://statistics.data.gov.uk/id/local-authority/30UE,Central Support Services,1009,Chief Executives Office,Postages,40082,Communication and Computing,5028,Mail Collection for all Departments,31/03/2014,93923,442.64,Revenue,TNT Post North Ltd,21187
Chorley Borough Council,http://statistics.data.gov.uk/id/local-authority/30UE,Unapportionable Central OHeads,1009,Chief Executives Office,Postages,40082,Communication and Computing,5028,Mail Collection for all Departments,31/03/2014,93926,657.20,Revenue,TNT Post North Ltd,21187
Chorley Borough Council,http://statistics.data.gov.uk/id/local-authority/30UE,Service Management & Support,1009,Streetscene & Leisure Contracts,Grounds Maintenance Contractor,20043,Grounds Maintenance Costs,5013,Various emergency tree work. Windblown,12/03/2014,93821,"1,940.00",Revenue,Treescape North West Ltd,17688
Chorley Borough Council,http://statistics.data.gov.uk/id/local-authority/30UE,Service Management & Support,1009,Streetscene & Leisure Contracts,Petrol,30005,Direct Transport Costs,5016,fuel,26/03/2014,94189,214.12,Revenue,Uk Fuels Ltd,57996
Chorley Borough Council,http://statistics.data.gov.uk/id/local-authority/30UE,Democratic Represent and  Mgnt,1007,Streetscene & Leisure Contracts,Use Of Transport - Mayoral Car,30015,Transport Recharges,5017,fuel,26/03/2014,94189,48.43,Revenue,Uk Fuels Ltd,57996
Chorley Borough Council,http://statistics.data.gov.uk/id/local-authority/30UE,Community Safety Crime Reduct,1043,Streetscene & Leisure Contracts,Petrol,30005,Direct Transport Costs,5016,fuel,26/03/2014,94189,29.23,Revenue,Uk Fuels Ltd,57996
Chorley Borough Council,http://statistics.data.gov.uk/id/local-authority/30UE,Central Support Services,1009,HR & Org. Development,Operational Wages,10200,Direct Employee Expenses,5001,Levels 1-5,31/03/2014,94231,"1,407.25",Revenue,UK Healthcare (BDHSC),17241
Chorley Borough Council,http://statistics.data.gov.uk/id/local-authority/30UE,Control Accounts,Control,HR & Org. Development,General Balances,100,Balance Sheet,Balance,Top Ups,31/03/2014,94231,413.65,Revenue,UK Healthcare (BDHSC),17241
Chorley Borough Council,http://statistics.data.gov.uk/id/local-authority/30UE,Local Tax Collection,1010,"Customer, ICT & Transactional",Postages,40082,Communication and Computing,5028,Imail Eco Business Mono Letters - Hybrid mail contract,05/03/2014,93757,472.49,Revenue,UKMAIL Ltd (Mail),57758
Chorley Borough Council,http://statistics.data.gov.uk/id/local-authority/30UE,Local Tax Collection,1010,"Customer, ICT & Transactional",Postages,40082,Communication and Computing,5028,Imail Eco Business Mono Letters - Hybrid mail contract,14/03/2014,93897,434.22,Revenue,UKMAIL Ltd (Mail),57758
Chorley Borough Council,http://statistics.data.gov.uk/id/local-authority/30UE,Local Tax Collection,1010,"Customer, ICT & Transactional",Postages,40082,Communication and Computing,5028,Imail Eco Business Mono Letters - Hybrid mail contract,26/03/2014,94124,614.03,Revenue,UKMAIL Ltd (Mail),57758
Chorley Borough Council,http://statistics.data.gov.uk/id/local-authority/30UE,Control Accounts,Control,Shared Service Arrangement,General Balances,100,Balance Sheet,Balance,DEDS,19/03/2014,94094,"1,291.00",Revenue,Unify Credit Union Ltd,55509
Chorley Borough Council,http://statistics.data.gov.uk/id/local-authority/30UE,Central Support Services,1009,"Customer, ICT & Transactional",Telephones - Maintenance,40233,Communication and Computing,5028,"Contract No 44031628 (Civic Offices): HiPath 4000 - 6,206.12 per annum ex VAT Xpressions - 2,073.46 per annum ex VAT",31/03/2014,93642,"5,175.60",Revenue,Unify Enterprise Communications,21179
Chorley Borough Council,http://statistics.data.gov.uk/id/local-authority/30UE,Unapportionable Central OHeads,1009,Streetscene & Leisure Contracts,Water - Metered Supplies,20022,Water Services,5009,04/12/13 to 31/03/14 Stump Lane,21/03/2014,94101,"1,305.38",Revenue,United Utilities Water Plc,17926
Chorley Borough Council,http://statistics.data.gov.uk/id/local-authority/30UE,Democratic Represent and  Mgnt,1007,Streetscene & Leisure Contracts,Water - Metered Supplies,20022,Water Services,5009,Astley Coach House,26/03/2014,94129,705.28,Revenue,United Utilities Water Plc,17926
Chorley Borough Council,http://statistics.data.gov.uk/id/local-authority/30UE,Culture & Heritage,1036,Streetscene & Leisure Contracts,Water - Metered Supplies,20022,Water Services,5009,Astley Hall 4 Dec - 13 Mar,26/03/2014,94132,736.89,Revenue,United Utilities Water Plc,17926
Chorley Borough Council,http://statistics.data.gov.uk/id/local-authority/30UE,Homelessness,1075,Housing,Water - Metered Supplies,20022,Water Services,5009,Cotswold House,31/03/2014,94215,"1,004.26",Revenue,United Utilities Water Plc,17926
Chorley Borough Council,http://statistics.data.gov.uk/id/local-authority/30UE,Economic Development,1096,Economic Development,Water - Metered Supplies,20022,Water Services,5009,"Market Stall 1, Market Street",31/03/2014,94217,397.74,Revenue,United Utilities Water Plc,17926
Chorley Borough Council,http://statistics.data.gov.uk/id/local-authority/30UE,Other Short Term Debtors,,Shared Service Arrangement,General Balances,100,Balance Sheet,Balance,16 Properties,31/03/2014,94218,"25,936.57",Revenue,United Utilities Water Plc,17926
Chorley Borough Council,http://statistics.data.gov.uk/id/local-authority/30UE,Democratic Represent and  Mgnt,1007,Streetscene & Leisure Contracts,Water - Metered Supplies,20022,Water Services,5009,Tatton Recr Grd,26/03/2014,94220,736.69,Revenue,United Utilities Water Plc,17926
Chorley Borough Council,http://statistics.data.gov.uk/id/local-authority/30UE,Democratic Represent and  Mgnt,1007,Streetscene & Leisure Contracts,Water - Metered Supplies,20022,Water Services,5009,Astley Hall,31/03/2014,94222,347.87,Revenue,United Utilities Water Plc,17926
Chorley Borough Council,http://statistics.data.gov.uk/id/local-authority/30UE,Homelessness,1075,Housing,Water - Unmetered Supply,20023,Water Services,5009,Cotswold House,31/03/2014,94226,"1,541.04",Revenue,United Utilities Water Plc,17926
Chorley Borough Council,http://statistics.data.gov.uk/id/local-authority/30UE,Unapportionable Central OHeads,1009,Governance,Sewerage/Environment Svcs,20024,Water Services,5009,Town Hall,31/03/2014,94227,"1,392.62",Revenue,United Utilities Water Plc,17926
Chorley Borough Council,http://statistics.data.gov.uk/id/local-authority/30UE,Unapportionable Central OHeads,1009,Governance,Mayors Medals,40029,"Equipment, Furniture & Materia",5023,"Retiring Mayor medal in silver gilt with case, blue ribbon and engraving as follows: Borough of Chorley Mayor 2013-14",19/03/2014,94087,726.51,Revenue,Vaughtons,18001
Chorley Borough Council,http://statistics.data.gov.uk/id/local-authority/30UE,Central Support Services,1009,Governance,Mayors Medals,40029,"Equipment, Furniture & Materia",5023,"Retiring Mayoress medal in silver gilt with case, blue ribbon and engraving as follows: Borough of Chorley Mayoress 13-14",19/03/2014,94087,380.52,Revenue,Vaughtons,18001
Chorley Borough Council,http://statistics.data.gov.uk/id/local-authority/30UE,Waste Collection,1050,Streetscene & Leisure Contracts,Unitary Payment(S),50009,Private Contractors,5042,Provision of refuse and recycling collection and ancillary services for 2013/14,19/03/2014,93994,"263,668.47",Revenue,Veolia ES (UK) Ltd,20748
Chorley Borough Council,http://statistics.data.gov.uk/id/local-authority/30UE,Corporate Management,1008,Streetscene & Leisure Contracts,Unitary Payment(S),50009,Private Contractors,5042,Provision of refuse and recycling collection and ancillary services for 2013/14,19/03/2014,94059,"263,668.47",Revenue,Veolia ES (UK) Ltd,20748
Chorley Borough Council,http://statistics.data.gov.uk/id/local-authority/30UE,Central Support Services,1009,"Customer, ICT & Transactional",Telephones - Other,40085,Communication and Computing,5028,Recurring Charges,31/03/2014,94278,644.06,Revenue,Virgin Media Payments Ltd,17632
Chorley Borough Council,http://statistics.data.gov.uk/id/local-authority/30UE,Central Support Services,1009,"Customer, ICT & Transactional",Telephones - Calls,40084,Communication and Computing,5028,Usage,31/03/2014,94278,329.00,Revenue,Virgin Media Payments Ltd,17632
Chorley Borough Council,http://statistics.data.gov.uk/id/local-authority/30UE,Democratic Represent and  Mgnt,1007,Streetscene & Leisure Contracts,Miscellaneous Expenses,40200,Miscellaneous Expenses,5034,"4 nr Outdoor free standing display cases, anodised aluminium finish, case size 1050mm x 750mm, A1 display, supplied ",19/03/2014,94086,"1,140.00",Revenue,White Hill Direct Ltd.,64098
Chorley Borough Council,http://statistics.data.gov.uk/id/local-authority/30UE,Democratic Represent and  Mgnt,1007,Streetscene & Leisure Contracts,Consultants` Fees,40077,Services,5027,Curatorial consultants fees for January 2014. 699.96 including VAT,12/03/2014,93845,583.30,Revenue,Whittle and Draper Fine Art,52271
Chorley Borough Council,http://statistics.data.gov.uk/id/local-authority/30UE,Service Management & Support,1009,Streetscene & Leisure Contracts,Vehicle Maintenance,30045,Direct Transport Costs,5016,Carryout works to brakes on MX06UKJ as per report by driver brakes not working correctly,12/03/2014,93545,427.00,Revenue,Wrekamendid Services Ltd,21188
Chorley Borough Council,http://statistics.data.gov.uk/id/local-authority/30UE,Corporate Management,1008,Streetscene & Leisure Contracts,Vehicle Maintenance,30045,Direct Transport Costs,5016,Carryout pre MOT and inspection on PO52XVV and take for annual test and return to depot.,26/03/2014,94209,439.01,Revenue,Wrekamendid Services Ltd,21188
Chorley Borough Council,http://statistics.data.gov.uk/id/local-authority/30UE,Community Safety Crime Reduct,1043,Streetscene & Leisure Contracts,Miscellaneous Expenses,40200,Miscellaneous Expenses,5034,Supply double litter bin to take 2 x240 litre litterbins as per your quotation ref number 30783 ,12/03/2014,93912,638.39,Revenue,Wybone Ltd,18097
Chorley Borough Council,http://statistics.data.gov.uk/id/local-authority/30UE,Corporate Management,1008,Streetscene & Leisure Contracts,Hire Of Transport,30028,Contrct Hire & Operating Lease,5018,Transport services for the Warm Homes (WHHP) project 2013-14,19/03/2014,94036,"1,714.70",Revenue,Yellow Cabs (North West Ltd),52276
Chorley Borough Council,http://statistics.data.gov.uk/id/local-authority/30UE,Corporate Management,1008,Shared Service Arrangement,Employee Related Insurance,18003,Indirect Employee Expenses,5002,Policy Renewal,12/03/2014,93824,"204,001.43",Revenue,Zurich Insurance Company,16236
Chorley Borough Council,http://statistics.data.gov.uk/id/local-authority/30UE,Corporate Management,1008,Shared Service Arrangement,Employee Related Insurance,18003,Indirect Employee Expenses,5002,Policy Renewal,05/03/2014,93825,"5,595.64",Revenue,Zurich Insurance Company,16236
Chorley Borough Council,http://statistics.data.gov.uk/id/local-authority/30UE,Corporate Management,1008,Shared Service Arrangement,Employee Related Insurance,18003,Indirect Employee Expenses,5002,Policy Renewal,05/03/2014,93826,265.00,Revenue,Zurich Insurance Company,16236
